Workbook

Sheet gl. til nyt niveau (hidden)
B1: 1.398079
D2: Nyt grundbeløb | E2: Nyt grundbeløb
A3: Grundbeløb pr. 1/10-1984 | B3: I alt pr. 1. april 1999 inkl. %regulering | D3: pr. 31/3-2000 | E3: pr. 31/3-2000
D4: ekskl. afrunding | E4: inkl. afrunding
F5: beløb
B6: pr. gang/år | C6: pr. måned | F6: +/-
A7: 1.63 | B7: =IF(A7<1000,$B$1*A7,ROUND($B$1*A7,0)) -> 2.27886877 | D7: =B7 -> 2.27886877 | E7: =IF(D7<1000,D7,ROUND(D7,-2)) -> 2.27886877
A8: 5 | B8: 6.990395 | D8: =B8 -> 6.990395 | E8: 6.990395
A9: 5.8 | B9: 8.1088582 | D9: 8.1088582 | E9: 8.1088582
A10: 9 | B10: 12.582711 | D10: 12.582711 | E10: 12.582711
A11: 10.5 | B11: 14.6798295 | D11: 14.6798295 | E11: 14.6798295
A12: 12.22 | B12: 17.08452538 | D12: 17.08452538 | E12: 17.08452538
A13: 12.65 | B13: 17.68569935 | D13: 17.68569935 | E13: 17.68569935
A14: 13.39 | B14: 18.72027781 | D14: 18.72027781 | E14: 18.72027781
A15: 13.75 | B15: 19.22358625 | D15: 19.22358625 | E15: 19.22358625
A16: 14.46 | B16: 20.21622234 | D16: 20.21622234 | E16: 20.21622234
A17: 15.2 | B17: 21.2508008 | D17: 21.2508008 | E17: 21.2508008
A18: 15.5 | B18: 21.6702245 | D18: 21.6702245 | E18: 21.6702245
A19: 17 | B19: 23.767343 | D19: 23.767343 | E19: 23.767343
A20: 18.5 | B20: 25.8644615 | D20: 25.8644615 | E20: 25.8644615
A21: 19 | B21: 26.563501 | D21: 26.563501 | E21: 26.563501
A22: 21 | B22: 29.359659 | D22: 29.359659 | E22: 29.359659
A23: 23 | B23: 32.155817 | D23: 32.155817 | E23: 32.155817
A24: 24.97 | B24: 34.91003263 | D24: 34.91003263 | E24: 34.91003263
A25: 28 | B25: 39.146212 | D25: 39.146212 | E25: 39.146212
A26: 30 | B26: 41.94237 | D26: 41.94237 | E26: 41.94237
A27: 33.29 | B27: 46.54204991 | D27: 46.54204991 | E27: 46.54204991
A28: 42 | B28: 58.719318 | D28: 58.719318 | E28: 58.719318
A29: 61.26 | B29: 85.64631954 | D29: 85.64631954 | E29: 85.64631954
A30: 62 | B30: 86.680898 | D30: 86.680898 | E30: 86.680898
A31: 68.32 | B31: 95.51675728 | D31: 95.51675728 | E31: 95.51675728
A32: 75.13 | B32: 105.0376753 | D32: 105.0376753 | E32: 105.0376753
A33: 80.38 | B33: 112.37759 | D33: 112.37759 | E33: 112.37759
A34: 136.64 | B34: 191.0335146 | D34: =B34 -> 191.0335146 | E34: 191.0335146
A35: 143.99 | B35: 201.3093952 | D35: =B35 -> 201.3093952 | E35: 201.3093952
A36: 150.61 | B36: 210.5646782 | D36: 210.5646782 | E36: 210.5646782
A37: 164 | B37: 229.284956 | D37: 229.284956 | E37: 229.284956
A38: 170 | B38: 237.67343 | D38: 237.67343 | E38: 237.67343
A39: 190 | B39: 265.63501 | D39: 265.63501 | E39: =IF(D39<1000,D39,ROUND(D39,-2)) -> 265.63501
A40: 195 | B40: 272.625405 | D40: 272.625405 | E40: 272.625405
A41: 202 | B41: 282.411958 | D41: 282.411958 | E41: 282.411958
A42: 260 | B42: 363.50054 | D42: 363.50054 | E42: 363.50054
A43: 278 | B43: 388.665962 | D43: 388.665962 | E43: 388.665962
A44: 300.84 | B44: 420.5980864 | D44: 420.5980864 | E44: 420.5980864
A45: 350 | B45: 489.32765 | D45: 489.32765 | E45: 489.32765
A46: 380 | B46: 531.27002 | D46: 531.27002 | E46: 531.27002
A47: 398.95 | B47: 557.763617 | D47: 557.763617 | E47: 557.763617
A48: 420 | B48: 587.19318 | D48: 587.19318 | E48: 587.19318
A49: 465 | B49: 650.106735 | D49: 650.106735 | E49: 650.106735
A50: 490 | B50: 685.05871 | D50: 685.05871 | E50: 685.05871
A51: 502 | B51: 701.835658 | D51: 701.835658 | E51: 701.835658
A52: 559 | B52: 781.526161 | D52: 781.526161 | E52: 781.526161
A53: 597 | B53: 834.653163 | D53: 834.653163 | E53: 834.653163
A54: 700 | B54: 978.6553 | C54: =VALUE(B54)/12 -> 81.55460833 | D54: 978.6553 | E54: =IF(D54<1000,D54,ROUND(D54,-2)) -> 978.6553 | F54: =E54-D54 -> 0
A55: 750 | B55: 1048.55925 | C55: 87.3799375 | D55: 1048.55925 | E55: =IF(D55<1000,D55,ROUND(D55,-2)) -> 1000 | F55: -48.55925
A56: 800 | B56: 1118.4632 | C56: 93.20526667 | D56: 1118.4632 | E56: =IF(D56<1000,D56,ROUND(D56,-2)) -> 1100 | F56: -18.4632
A57: 842.75 | B57: 1178.231077 | C57: 98.1859231 | D57: 1178.231077 | E57: 1200 | F57: 21.76892275
A58: 868 | B58: 1213.532572 | C58: 101.1277143 | D58: 1213.532572 | E58: 1200 | F58: -13.532572
A59: 917.14 | B59: 1282.234174 | C59: 106.8528478 | D59: =B59 -> 1282.234174 | E59: 1300 | F59: 17.76582594
A60: 920 | B60: 1286.23268 | C60: 107.1860567 | D60: 1286.23268 | E60: 1300 | F60: 13.76732
A61: 925 | B61: 1293.223075 | C61: 107.7685896 | D61: 1293.223075 | E61: 1300 | F61: 6.776925
A62: 950 | B62: =IF(A62<1000,$B$1*A62,ROUND($B$1*A62,0)) -> 1328.17505 | C62: 110.6812542 | D62: 1328.17505 | E62: 1300 | F62: -28.17505
A63: 1000 | B63: =IF(A63<1000,$B$1*A63,ROUND($B$1*A63,0)) -> 1398 | C63: 116.5 | D63: 1398 | E63: 1400 | F63: 2
A64: 1050 | B64: =IF(A64<1000,$B$1*A64,ROUND($B$1*A64,0)) -> 1468 | C64: 122.3333333 | D64: 1468 | E64: 1500 | F64: 32
A65: 1100 | B65: =IF(A65<1000,$B$1*A65,ROUND($B$1*A65,0)) -> 1538 | C65: 128.1666667 | D65: 1538 | E65: 1500 | F65: -38
A66: 1200 | B66: 1678 | C66: 139.8333333 | D66: 1678 | E66: 1700 | F66: 22
A67: 1245 | B67: 1741 | C67: 145.0833333 | D67: =B67 -> 1741 | E67: 1700 | F67: =E67-D67 -> -41
A68: 1300 | B68: 1818 | C68: 151.5 | D68: 1818 | E68: 1800 | F68: -18
A69: 1327 | B69: 1855 | C69: 154.5833333 | D69: 1855 | E69: 1900 | F69: 45
A70: 1400 | B70: 1957 | C70: 163.0833333 | D70: 1957 | E70: 2000 | F70: 43
A71: 1500 | B71: 2097 | C71: 174.75 | D71: 2097 | E71: 2100 | F71: 3
A72: 1600 | B72: 2237 | C72: 186.4166667 | D72: 2237 | E72: 2200 | F72: -37
A73: 1700 | B73: 2377 | C73: 198.0833333 | D73: 2377 | E73: 2400 | F73: 23
A74: 1750 | B74: 2447 | C74: 203.9166667 | D74: 2447 | E74: 2400 | F74: -47
A75: 1800 | B75: 2517 | C75: 209.75 | D75: 2517 | E75: 2500 | F75: -17
A76: 1900 | B76: 2656 | C76: 221.3333333 | D76: 2656 | E76: 2700 | F76: 44
A77: 2000 | B77: 2796 | C77: 233 | D77: 2796 | E77: 2800 | F77: 4
A78: 2050 | B78: 2866 | C78: 238.8333333 | D78: 2866 | E78: 2900 | F78: 34
A79: 2100 | B79: 2936 | C79: 244.6666667 | D79: 2936 | E79: 2900 | F79: -36
A80: 2145 | B80: 2999 | C80: 249.9166667 | D80: 2999 | E80: 3000 | F80: 1
A81: 2150 | B81: 3006 | C81: 250.5 | D81: 3006 | E81: 3000 | F81: -6
A82: 2200 | B82: 3076 | C82: 256.3333333 | D82: 3076 | E82: 3100 | F82: 24
A83: 2300 | B83: 3216 | C83: 268 | D83: 3216 | E83: 3200 | F83: -16
A84: 2400 | B84: 3355 | C84: 279.5833333 | D84: 3355 | E84: 3400 | F84: 45
A85: 2450 | B85: 3425 | C85: 285.4166667 | D85: 3425 | E85: 3400 | F85: -25
A86: 2500 | B86: 3495 | C86: 291.25 | D86: 3495 | E86: 3500 | F86: 5
A87: 2600 | B87: 3635 | C87: 302.9166667 | D87: 3635 | E87: 3600 | F87: -35
A88: 2700 | B88: 3775 | C88: 314.5833333 | D88: 3775 | E88: 3800 | F88: 25
A89: 2730 | B89: 3817 | C89: 318.0833333 | D89: 3817 | E89: 3800 | F89: -17
A90: 2800 | B90: 3915 | C90: 326.25 | D90: 3915 | E90: 3900 | F90: -15
A91: 2900 | B91: 4054 | C91: 337.8333333 | D91: 4054 | E91: 4100 | F91: 46
A92: 3000 | B92: 4194 | C92: 349.5 | D92: 4194 | E92: 4200 | F92: 6
A93: 3100 | B93: 4334 | C93: 361.1666667 | D93: 4334 | E93: 4300 | F93: -34
A94: 3200 | B94: 4474 | C94: 372.8333333 | D94: 4474 | E94: 4500 | F94: 26
A95: 3300 | B95: 4614 | C95: 384.5 | D95: 4614 | E95: 4600 | F95: -14
A96: 3400 | B96: 4753 | C96: 396.0833333 | D96: 4753 | E96: 4800 | F96: 47
A97: 3500 | B97: 4893 | C97: 407.75 | D97: 4893 | E97: 4900 | F97: 7
A98: 3600 | B98: 5033 | C98: 419.4166667 | D98: 5033 | E98: 5000 | F98: -33
A99: 3700 | B99: 5173 | C99: 431.0833333 | D99: 5173 | E99: 5200 | F99: 27
A100: 3800 | B100: 5313 | C100: 442.75 | D100: 5313 | E100: 5300 | F100: -13
A101: 3900 | B101: 5453 | C101: 454.4166667 | D101: 5453 | E101: 5500 | F101: 47
A102: 4000 | B102: 5592 | C102: 466 | D102: 5592 | E102: 5600 | F102: 8
A103: 4100 | B103: 5732 | C103: 477.6666667 | D103: 5732 | E103: 5700 | F103: -32
A104: 4200 | B104: 5872 | C104: 489.3333333 | D104: 5872 | E104: 5900 | F104: 28
A105: 4226.1 | B105: 5908 | C105: 492.3333333 | D105: 5908 | E105: 5900 | F105: -8
A106: 4300 | B106: 6012 | C106: 501 | D106: 6012 | E106: 6000 | F106: -12
A107: 4400 | B107: 6152 | C107: 512.6666667 | D107: 6152 | E107: 6200 | F107: 48
A108: 4430 | B108: 6193 | C108: 516.0833333 | D108: 6193 | E108: 6200 | F108: 7
A109: 4500 | B109: 6291 | C109: 524.25 | D109: 6291 | E109: 6300 | F109: 9
A110: 4600 | B110: 6431 | C110: 535.9166667 | D110: 6431 | E110: 6400 | F110: -31
A111: 4700 | B111: 6571 | C111: 547.5833333 | D111: 6571 | E111: 6600 | F111: 29
A112: 1770 | B112: 2475 | C112: 206.25 | D112: 2475 | E112: 2500 | F112: 25
A113: 4800 | B113: 6711 | C113: 559.25 | D113: 6711 | E113: 6700 | F113: -11
A114: 4900 | B114: 6851 | C114: 570.9166667 | D114: 6851 | E114: 6900 | F114: 49
A115: 4930 | B115: 6893 | C115: 574.4166667 | D115: 6893 | E115: 6900 | F115: 7
A116: 5000 | B116: 6990 | C116: 582.5 | D116: 6990 | E116: 7000 | F116: 10
A117: 5100 | B117: 7130 | C117: 594.1666667 | D117: 7130 | E117: 7100 | F117: -30
A118: 5200 | B118: 7270 | C118: =VALUE(B118)/12 -> 605.8333333 | D118: 7270 | E118: 7300 | F118: 30
A119: 5300 | B119: 7410 | C119: 617.5 | D119: 7410 | E119: 7400 | F119: -10
A120: 5318 | B120: 7435 | C120: 619.5833333 | D120: 7435 | E120: =IF(D120<1000,D120,ROUND(D120,-2)) -> 7400 | F120: -35
A121: 5400 | B121: 7550 | C121: 629.1666667 | D121: 7550 | E121: 7600 | F121: 50
A122: 5420.91 | B122: 7579 | C122: 631.5833333 | D122: 7579 | E122: 7600 | F122: 21
A123: 5500 | B123: 7689 | C123: 640.75 | D123: =B123 -> 7689 | E123: 7700 | F123: =E123-D123 -> 11
A124: 5600 | B124: 7829 | C124: 652.4166667 | D124: 7829 | E124: 7800 | F124: -29
A125: 5700 | B125: 7969 | C125: 664.0833333 | D125: 7969 | E125: 8000 | F125: 31
A126: 5770.78 | B126: 8068 | C126: 672.3333333 | D126: 8068 | E126: 8100 | F126: 32
A127: 5800 | B127: 8109 | C127: 675.75 | D127: 8109 | E127: 8100 | F127: -9
A128: 5900 | B128: 8249 | C128: 687.4166667 | D128: 8249 | E128: 8200 | F128: -49
A129: 6000 | B129: =IF(A129<1000,$B$1*A129,ROUND($B$1*A129,0)) -> 8388 | C129: 699 | D129: 8388 | E129: 8400 | F129: 12
A130: 6078 | B130: 8498 | C130: 708.1666667 | D130: 8498 | E130: 8500 | F130: 2
A131: 6100 | B131: 8528 | C131: 710.6666667 | D131: 8528 | E131: 8500 | F131: -28
A132: 6140 | B132: 8584 | C132: 715.3333333 | D132: 8584 | E132: 8600 | F132: 16
A133: 6200 | B133: 8668 | C133: 722.3333333 | D133: 8668 | E133: 8700 | F133: 32
A134: 6290.15 | B134: 8794 | C134: 732.8333333 | D134: 8794 | E134: 8800 | F134: 6
A135: 6300 | B135: 8808 | C135: 734 | D135: 8808 | E135: 8800 | F135: -8
A136: 6400 | B136: 8948 | C136: 745.6666667 | D136: 8948 | E136: 8900 | F136: -48
A137: 6500 | B137: 9088 | C137: 757.3333333 | D137: 9088 | E137: 9100 | F137: 12
A138: 6600 | B138: 9227 | C138: 768.9166667 | D138: 9227 | E138: 9200 | F138: -27
A139: 6700 | B139: 9367 | C139: 780.5833333 | D139: 9367 | E139: 9400 | F139: 33
A140: 6743.33 | B140: 9428 | C140: 785.6666667 | D140: 9428 | E140: 9400 | F140: -28
A141: 6800 | B141: 9507 | C141: 792.25 | D141: 9507 | E141: 9500 | F141: -7
A142: 6900 | B142: 9647 | C142: 803.9166667 | D142: 9647 | E142: 9600 | F142: -47
A143: 7000 | B143: 9787 | C143: 815.5833333 | D143: 9787 | E143: 9800 | F143: 13
A144: 7100 | B144: 9926 | C144: 827.1666667 | D144: 9926 | E144: 9900 | F144: -26
A145: 7200 | B145: 10066 | C145: 838.8333333 | D145: 10066 | E145: 10100 | F145: 34
A146: 7300 | B146: 10206 | C146: 850.5 | D146: 10206 | E146: 10200 | F146: -6
A147: 7335.23 | B147: 10255 | C147: 854.5833333 | D147: 10255 | E147: 10300 | F147: 45
A148: 7400 | B148: 10346 | C148: 862.1666667 | D148: 10346 | E148: 10300 | F148: -46
A149: 7500 | B149: 10486 | C149: 873.8333333 | D149: 10486 | E149: 10500 | F149: 14
A150: 7600 | B150: 10625 | C150: 885.4166667 | D150: 10625 | E150: 10600 | F150: -25
A151: 7700 | B151: 10765 | C151: 897.0833333 | D151: 10765 | E151: 10800 | F151: 35
A152: 7800 | B152: 10905 | C152: 908.75 | D152: 10905 | E152: 10900 | F152: -5
A153: 7900 | B153: 11045 | C153: 920.4166667 | D153: 11045 | E153: 11000 | F153: -45
A154: 8000 | B154: 11185 | C154: 932.0833333 | D154: 11185 | E154: 11200 | F154: 15
A155: 8100 | B155: 11324 | C155: 943.6666667 | D155: 11324 | E155: 11300 | F155: -24
A156: 8200 | B156: 11464 | C156: 955.3333333 | D156: 11464 | E156: 11500 | F156: 36
A157: 8300 | B157: 11604 | C157: 967 | D157: 11604 | E157: 11600 | F157: -4
A158: 8400 | B158: 11744 | C158: 978.6666667 | D158: 11744 | E158: 11700 | F158: -44
A159: 8500 | B159: 11884 | C159: 990.3333333 | D159: 11884 | E159: 11900 | F159: 16
A160: 8600 | B160: 12023 | C160: 1001.916667 | D160: 12023 | E160: 12000 | F160: -23
A161: 8700 | B161: 12163 | C161: 1013.583333 | D161: 12163 | E161: 12200 | F161: 37
A162: 8800 | B162: 12303 | C162: 1025.25 | D162: 12303 | E162: 12300 | F162: -3
A163: 8900 | B163: 12443 | C163: 1036.916667 | D163: 12443 | E163: 12400 | F163: -43
A164: 9000 | B164: 12583 | C164: 1048.583333 | D164: 12583 | E164: 12600 | F164: 17
A165: 9100 | B165: 12723 | C165: 1060.25 | D165: 12723 | E165: 12700 | F165: -23
A166: 9200 | B166: 12862 | C166: 1071.833333 | D166: 12862 | E166: 12900 | F166: 38
A167: 9300 | B167: 13002 | C167: 1083.5 | D167: 13002 | E167: 13000 | F167: -2
A168: 9400 | B168: 13142 | C168: 1095.166667 | D168: 13142 | E168: 13100 | F168: -42
A169: 9450 | B169: 13212 | C169: 1101 | D169: 13212 | E169: 13200 | F169: -12
A170: 9500 | B170: 13282 | C170: 1106.833333 | D170: 13282 | E170: 13300 | F170: 18
A171: 9600 | B171: 13422 | C171: 1118.5 | D171: 13422 | E171: 13400 | F171: -22
A172: 9700 | B172: 13561 | C172: 1130.083333 | D172: 13561 | E172: 13600 | F172: 39
A173: 9800 | B173: 13701 | C173: 1141.75 | D173: 13701 | E173: 13700 | F173: -1
A174: 9900 | B174: 13841 | C174: 1153.416667 | D174: 13841 | E174: 13800 | F174: -41
A175: 10000 | B175: 13981 | C175: 1165.083333 | D175: 13981 | E175: 14000 | F175: 19
A176: 10600 | B176: 14820 | C176: 1235 | D176: 14820 | E176: 14800 | F176: -20
A177: 10800 | B177: 15099 | C177: 1258.25 | D177: 15099 | E177: 15100 | F177: 1
A178: 11000 | B178: 15379 | C178: 1281.583333 | D178: 15379 | E178: 15400 | F178: 21
A179: 11200 | B179: 15658 | C179: 1304.833333 | D179: 15658 | E179: 15700 | F179: 42
A180: 11300 | B180: 15798 | C180: 1316.5 | D180: 15798 | E180: 15800 | F180: 2
A181: 11500 | B181: 16078 | C181: 1339.833333 | D181: 16078 | E181: 16100 | F181: 22
A182: 11600 | B182: 16218 | C182: =VALUE(B182)/12 -> 1351.5 | D182: 16218 | E182: 16200 | F182: -18
A183: 11700 | B183: 16358 | C183: 1363.166667 | D183: 16358 | E183: 16400 | F183: 42
A184: 11800 | B184: 16497 | C184: 1374.75 | D184: 16497 | E184: =IF(D184<1000,D184,ROUND(D184,-2)) -> 16500 | F184: 3
A185: 11900 | B185: 16637 | C185: 1386.416667 | D185: 16637 | E185: 16600 | F185: -37
A186: 12000 | B186: 16777 | C186: 1398.083333 | D186: 16777 | E186: 16800 | F186: 23
A187: 12100 | B187: 16917 | C187: 1409.75 | D187: =B187 -> 16917 | E187: 16900 | F187: =E187-D187 -> -17
A188: 12200 | B188: 17057 | C188: 1421.416667 | D188: 17057 | E188: 17100 | F188: 43
A189: 12300 | B189: 17196 | C189: 1433 | D189: 17196 | E189: 17200 | F189: 4
A190: 12400 | B190: 17336 | C190: 1444.666667 | D190: 17336 | E190: 17300 | F190: -36
A191: 12500 | B191: 17476 | C191: 1456.333333 | D191: 17476 | E191: 17500 | F191: 24
A192: 12600 | B192: 17616 | C192: 1468 | D192: 17616 | E192: 17600 | F192: -16
A193: 12700 | B193: =IF(A193<1000,$B$1*A193,ROUND($B$1*A193,0)) -> 17756 | C193: 1479.666667 | D193: 17756 | E193: 17800 | F193: 44
A194: 12800 | B194: 17895 | C194: 1491.25 | D194: 17895 | E194: 17900 | F194: 5
A195: 12900 | B195: 18035 | C195: 1502.916667 | D195: 18035 | E195: 18000 | F195: -35
A196: 13000 | B196: 18175 | C196: 1514.583333 | D196: 18175 | E196: 18200 | F196: 25
A197: 13200 | B197: 18455 | C197: 1537.916667 | D197: 18455 | E197: 18500 | F197: 45
A198: 13400 | B198: 18734 | C198: 1561.166667 | D198: 18734 | E198: 18700 | F198: -34
A199: 13500 | B199: 18874 | C199: 1572.833333 | D199: 18874 | E199: 18900 | F199: 26
A200: 13700 | B200: 19154 | C200: 1596.166667 | D200: 19154 | E200: 19200 | F200: 46
... 195 more rows

Sheet reguleringsprocenter (hidden)
B2: Reguleringsprocenter | D2: pensionsudbygning
B3: Valgt: | C3: =VLOOKUP(Forside!K11,reguleringsprocenter!B4:D15,2,TRUE) -> 1.57765
B4: 2020-01-01 | C4: 1.412411 | D4: 1
B5: 2020-04-01 | C5: 1.417798 | D5: 1
B6: 2020-10-01 | C6: 1.428511 | D6: 1
B7: 2021-04-01 | C7: 1.442796 | D7: 1
B8: 2021-10-01 | C8: 1.456933 | D8: 1
B9: 2022-04-01 | C9: 1.456933 | D9: 1
B10: 2022-10-01 | C10: 1.494018 | D10: 1
B11: 2023-04-01 | C11: 1.498304 | D11: 1
B12: 2023-10-01 | C12: 1.516971 | D12: 1
B13: 2024-04-01 | C13: 1.57765 | D13: 1
B18: Liste, opslag niveauer
B20: 2024-04-01
B21: 2023-10-01
B22: 2023-04-01
B23: 2022-10-01
B24: 2022-04-01
B25: 2021-10-01
B26: 2021-04-01
B27: 2020-10-01
B28: 2020-04-01
B29: 2020-01-01

Sheet Lønark (hidden)
A1: 1 | B1: 2 | C1: 3 | D1: 4 | E1: 5 | F1: 6 | G1: 7 | H1: 8 | I1: 9 | J1: 10 | K1: 11 | L1: 12 | M1: 13 | N1: 14 | O1: 15 | P1: 16 | Q1: 17 | R1: 18 | S1: 19 | T1: 20 | U1: 21 | V1: 22 | W1: 23 | X1: 24 | Y1: 25 | Z1: 26 | AA1: 27 | AB1: 28 | AC1: 29 | AD1: 30 | AE1: 31 | AF1: 32 | AG1: 33 | AH1: 34 | AI1: 35 | AJ1: 36 | AK1: 37 | AL1: 38 | AM1: 39 | AN1: 40 | AO1: 41 | AP1: 42 | AQ1: 43 | AR1: 44 | AS1: 45 | AT1: 46 | AU1: 47 | AV1: 48 | AW1: 49 | AX1: 50 | AY1: 51 | AZ1: 52 | BA1: 53 | BB1: 54 | BC1: 55 | BD1: 56
A2: Næstved | X2: Løn | Y2: Årsløn | AB2: Ureguleret ikke-pensionsgivende tillæg | AF2: Årsløn ialt | CH2: Lavtlønsprojekt
X3: Løn | Y3: Årsløn | AB3: Ureguleret ikke-pensionsgivende tillæg | AL3: Områdetillæg inkl. regulering | AQ3: Årsløn ialt | AW3: Pensionsgivende løn | BF3: Pensionsgivende løn | BL3: Løn | BM3: timelønninger | BS3: Løn | BT3: timelønninger + 50% | BZ3: Løn | CA3: søndagstillæg - 50% | CH3: 2019-03-31 | CI3: 0 | CJ3: 0
B4: Månedsløn, løngrupper | E4: Lønniveau: | F4: =VLOOKUP(beregningsdato,regpct_tabel,1,TRUE) -> 2024-04-01 | H4: Optrapning fra: | M4: Pensionsgivende løn | S4: Pensionsgivende løn, optrapning fra: | X4: trin | Y4: Grundsats | Z4: %-reg. | AA4: Sats | AB4: Omr 1 | AC4: Omr 2 | AD4: Omr 3 | AE4: Omr 4 | AL4: 1 | AM4: 2 | AN4: 3 | AO4: 4 | AQ4: Omr 0 | AR4: Omr 1 | AS4: Omr 2 | AT4: Omr 3 | AU4: Omr 4 | AW4: Grundsats | AX4: %-reg. | AY4: Sats | BA4: Pensionsudbygningspct: | BD4: =VLOOKUP(F4,regpct_tabel,3,FALSE) -> 1 | BF4: Omr 0 | BG4: Omr 1 | BH4: Omr 2 | BI4: Omr 3 | BJ4: Omr 4 | BL4: trin | BM4: Omr 0 | BN4: Omr 1 | BO4: Omr 2 | BP4: Omr 3 | BQ4: Omr 4 | BS4: trin | BT4: Omr 0 | BU4: Omr 1 | BV4: Omr 2 | BW4: Omr 3 | BX4: Omr 4 | BZ4: trin | CA4: Omr 0 | CB4: Omr 1 | CC4: Omr 2 | CD4: Omr 3 | CE4: Omr 4 | CH4: 2019-04-01 | CI4: 382 | CJ4: 0
B5: 0 | C5: 1 | D5: 2 | E5: 3 | F5: 4 | H5: 0->1 | I5: 1->2 | J5: 2->3 | M5: 0 | N5: 1 | O5: 2 | P5: 3 | Q5: 4 | S5: 0->1 | T5: 1->2 | U5: 2->3 | V5: 3->4 | Y5: =VLOOKUP(beregningsdato,Lavtløn,2,TRUE) -> 1035 | Z5: =valgt_regulering-1 -> 0.57765 | AA5: 2019-04-01 | AB5: 2022-04-01 | AC5: =VLOOKUP(beregningsdato,Lavtløn,3,TRUE) -> 653 | AL5: =IF(beregningsdato<40087,0,regulering) -> 0.57765 | AM5: =IF(beregningsdato<40087,0,5) -> 5 | CH5: 2022-04-01 | CI5: =CI4+CJ5 -> 1035 | CJ5: 653
A6: 1 | B6: =AQ6/12 -> 19351.75 | C6: 19625.5 | D6: 19814.91667 | E6: 20088.75 | F6: 20278.25 | H6: =ROUND(AQ6+(AR6-AQ6)/3*faktor,0)/12 -> 22401516.75 | I6: =ROUND(AR6+(AS6-AR6)/3*faktor,0)/12 -> 15506584.75 | J6: =ROUND(AS6+(AT6-AS6)/3*faktor,0)/12 -> 22408793.33 | L6: 1 | M6: =BF6/12 -> 19351.75 | N6: 19625.5 | O6: 19814.91667 | P6: 20088.75 | Q6: 20278.25 | S6: =(BF6+ROUND((BG6-BF6)/3*faktor,0))/12 -> 22401516.75 | T6: =(BG6+ROUND((BH6-BG6)/3*faktor,0))/12 -> 15506584.75 | U6: =(BH6+ROUND((BI6-BH6)/3*faktor,0))/12 -> 22408793.33 | V6: =(BI6+ROUND((BJ6-BI6)/3*faktor,0))/12 -> 15513861.42 | X6: 1 | Y6: 147194 | Z6: =ROUND(Y6*regulering,0) -> 85027 | AA6: =Y6+Z6 -> 232221 | AB6: 2585 | AC6: 4374 | AD6: 6959 | AE6: 8748 | AG6: 2082 | AH6: 3523 | AI6: 5606 | AJ6: 7047 | AL6: =ROUND(VLOOKUP($X6,$X:$AJ,(4+AL$4)+$AM$5)*(1+$AL$5),0) -> 3285 | AM6: 5558 | AN6: 8844 | AO6: 11118 | AQ6: =$AA6 -> 232221 | AR6: =$AA6+AL6 -> 235506 | AS6: 237779 | AT6: 241065 | AU6: 243339 | AW6: 147194 | AX6: =AW6*regulering -> 85026.6141 | AY6: =ROUND(SUM(AW6:AX6),0) -> 232221 | BA6: =ROUND(AL6*udbygningspct,0) -> 3285 | BB6: =ROUND(AM6*udbygningspct,0) -> 5558 | BC6: =ROUND(AN6*udbygningspct,0) -> 8844 | BD6: =ROUND(AO6*udbygningspct,0) -> 11118 | BF6: =AY6 -> 232221 | BG6: =$BF6+BA6 -> 235506 | BH6: =$BF6+BB6 -> 237779 | BI6: 241065 | BJ6: 243339 | BL6: 1 | BM6: =AQ6/1924 -> 120.6969854 | BN6: 122.4043659 | BO6: 123.5857588 | BP6: 125.293659 | BQ6: 126.4755717 | BS6: 1 | BT6: =AQ6/1924*1.5 -> 181.0454782 | BU6: =AR6/1924*1.5 -> 183.6065489 | BV6: =AS6/1924*1.5 -> 185.3786383 | BW6: =AT6/1924*1.5 -> 187.9404886 | BX6: =AU6/1924*1.5 -> 189.7133576 | BZ6: 1 | CA6: =AQ6/1924/2 -> 60.34849272 | CB6: 61.20218295 | CC6: 61.79287942 | CD6: 62.64682952 | CE6: 63.23778586
A7: 2 | B7: 19649 | C7: 19929.41667 | D7: 20123.5 | E7: 20403.91667 | F7: 20597.91667 | H7: 22946889.58 | I7: 15888441.5 | J7: 22947364.08 | L7: 2 | M7: 19649 | N7: 19929.41667 | O7: 20123.5 | P7: 20403.91667 | Q7: 20597.91667 | S7: 22946889.58 | T7: 15888441.5 | U7: 22947364.08 | V7: 15882102.58 | X7: 2 | Y7: 149455 | Z7: 86333 | AA7: 235788 | AB7: 2648 | AC7: 4481 | AD7: 7128 | AE7: 8961 | AG7: 2133 | AH7: 3609 | AI7: 5742 | AJ7: 7218 | AL7: 3365 | AM7: 5694 | AN7: 9059 | AO7: 11387 | AQ7: =$AA7 -> 235788 | AR7: 239153 | AS7: 241482 | AT7: 244847 | AU7: 247175 | AW7: 149455 | AX7: =AW7*regulering -> 86332.68075 | AY7: =ROUND(SUM(AW7:AX7),0) -> 235788 | BA7: 3365 | BB7: 5694 | BC7: 9059 | BD7: 11387 | BF7: =AY7 -> 235788 | BG7: 239153 | BH7: 241482 | BI7: 244847 | BJ7: 247175 | BL7: 2 | BM7: 122.5509356 | BN7: 124.299896 | BO7: 125.510395 | BP7: 127.2593555 | BQ7: 128.4693347 | BS7: 2 | BT7: =AQ7/1924*1.5 -> 183.8264033 | BU7: 186.4498441 | BV7: 188.2655925 | BW7: 190.8890333 | BX7: 192.7040021 | BZ7: 2 | CA7: 61.27546778 | CB7: 62.14994802 | CC7: 62.75519751 | CD7: 63.62967775 | CE7: 64.23466736
A8: 3 | B8: 19954.25 | C8: 20241.41667 | D8: 20440.33333 | E8: 20727.41667 | F8: 20926.5 | H8: 23499083.83 | I8: 16283933.33 | J8: 23492756.42 | L8: 3 | M8: 19954.25 | N8: 20241.41667 | O8: 20440.33333 | P8: 20727.41667 | Q8: 20926.5 | S8: 23499083.83 | T8: 16283933.33 | U8: 23492756.42 | V8: 16298046.17 | X8: 3 | Y8: 151777 | Z8: 87674 | AA8: 239451 | AB8: 2711 | AC8: 4590 | AD8: 7301 | AE8: 9180 | AG8: 2184 | AH8: 3697 | AI8: 5881 | AJ8: 7395 | AL8: 3446 | AM8: 5833 | AN8: 9278 | AO8: 11667 | AQ8: 239451 | AR8: 242897 | AS8: 245284 | AT8: 248729 | AU8: 251118 | AW8: 151777 | AX8: 87673.98405 | AY8: 239451 | BA8: 3446 | BB8: 5833 | BC8: 9278 | BD8: 11667 | BF8: 239451 | BG8: 242897 | BH8: 245284 | BI8: 248729 | BJ8: 251118 | BL8: 3 | BM8: 124.4547817 | BN8: 126.245842 | BO8: 127.4864865 | BP8: 129.277027 | BQ8: 130.518711 | BS8: 3 | BT8: 186.6821726 | BU8: 189.368763 | BV8: 191.2297297 | BW8: 193.9155405 | BX8: 195.7780665 | BZ8: 3 | CA8: 62.22739085 | CB8: 63.122921 | CC8: 63.74324324 | CD8: 64.63851351 | CE8: 65.25935551
A9: 4 | B9: 20267.91667 | C9: 20562.25 | D9: 20765.91667 | E9: 21060.25 | F9: 21263.91667 | H9: 24085353.67 | I9: 16672620.5 | J9: 24085851.67 | L9: 4 | M9: 20267.91667 | N9: 20562.25 | O9: 20765.91667 | P9: 21060.25 | Q9: 21263.91667 | S9: 24085353.67 | T9: 16672620.5 | U9: 24085851.67 | V9: 16673118.5 | X9: 4 | Y9: 154163 | Z9: 89052 | AA9: 243215 | AB9: 2779 | AC9: 4703 | AD9: 7482 | AE9: 9405 | AG9: 2239 | AH9: 3788 | AI9: 6027 | AJ9: 7576 | AL9: 3532 | AM9: 5976 | AN9: 9508 | AO9: 11952 | AQ9: 243215 | AR9: 246747 | AS9: 249191 | AT9: 252723 | AU9: 255167 | AW9: 154163 | AX9: 89052.25695 | AY9: 243215 | BA9: 3532 | BB9: 5976 | BC9: 9508 | BD9: 11952 | BF9: 243215 | BG9: 246747 | BH9: 249191 | BI9: 252723 | BJ9: 255167 | BL9: 4 | BM9: 126.4111227 | BN9: 128.2468815 | BO9: 129.5171518 | BP9: 131.3529106 | BQ9: 132.6231809 | BS9: 4 | BT9: 189.616684 | BU9: 192.3703222 | BV9: 194.2757277 | BW9: 197.0293659 | BX9: 198.9347713 | BZ9: 4 | CA9: 63.20556133 | CB9: 64.12344075 | CC9: 64.75857588 | CD9: 65.6764553 | CE9: 66.31159044
A10: 5 | B10: 20590.16667 | C10: 20891.66667 | D10: 21100.5 | E10: 21402 | F10: 21610.66667 | H10: 24671632.17 | I10: 17095383.42 | J10: 24672142.5 | L10: 5 | M10: 20590.16667 | N10: 20891.66667 | O10: 21100.5 | P10: 21402 | Q10: 21610.66667 | S10: 24671632.17 | T10: 17095383.42 | U10: 24672142.5 | V10: 17082266.92 | X10: 5 | Y10: 156614 | Z10: 90468 | AA10: 247082 | AB10: 2847 | AC10: 4819 | AD10: 7666 | AE10: 9636 | AG10: 2293 | AH10: 3882 | AI10: 6175 | AJ10: 7762 | AL10: 3618 | AM10: 6124 | AN10: 9742 | AO10: 12246 | AQ10: 247082 | AR10: 250700 | AS10: 253206 | AT10: 256824 | AU10: 259328 | AW10: 156614 | AX10: 90468.0771 | AY10: 247082 | BA10: 3618 | BB10: 6124 | BC10: 9742 | BD10: 12246 | BF10: 247082 | BG10: 250700 | BH10: 253206 | BI10: 256824 | BJ10: 259328 | BL10: 5 | BM10: 128.4209979 | BN10: 130.3014553 | BO10: 131.6039501 | BP10: 133.4844075 | BQ10: 134.7858628 | BS10: 5 | BT10: 192.6314969 | BU10: 195.452183 | BV10: 197.4059252 | BW10: 200.2266112 | BX10: 202.1787942 | BZ10: 5 | CA10: 64.21049896 | CB10: 65.15072765 | CC10: 65.80197505 | CD10: 66.74220374 | CE10: 67.39293139
A11: 6 | B11: 20921.58333 | C11: 21230.5 | D11: 21444.41667 | E11: 21753.25 | F11: 21967.16667 | H11: 25278360.17 | I11: 17511342.42 | J11: 25272069.5 | L11: 6 | M11: 20921.58333 | N11: 21230.5 | O11: 21444.41667 | P11: 21753.25 | Q11: 21967.16667 | S11: 25278360.17 | T11: 17511342.42 | U11: 25272069.5 | V11: 17511865.17 | X11: 6 | Y11: 159135 | Z11: 91924 | AA11: 251059 | AB11: 2917 | AC11: 4937 | AD11: 7854 | AE11: 9873 | AG11: 2350 | AH11: 3977 | AI11: 6326 | AJ11: 7953 | AL11: 3707 | AM11: 6274 | AN11: 9980 | AO11: 12547 | AQ11: 251059 | AR11: 254766 | AS11: 257333 | AT11: 261039 | AU11: 263606 | AW11: 159135 | AX11: 91924.33275 | AY11: 251059 | BA11: 3707 | BB11: 6274 | BC11: 9980 | BD11: 12547 | BF11: 251059 | BG11: 254766 | BH11: 257333 | BI11: 261039 | BJ11: 263606 | BL11: 6 | BM11: 130.4880457 | BN11: 132.4147609 | BO11: 133.7489605 | BP11: 135.6751559 | BQ11: 137.0093555 | BS11: 6 | BT11: 195.7320686 | BU11: 198.6221414 | BV11: 200.6234407 | BW11: 203.5127339 | BX11: 205.5140333 | BZ11: 6 | CA11: 65.24402287 | CB11: 66.20738046 | CC11: 66.87448025 | CD11: 67.83757796 | CE11: 68.50467775
A12: 7 | B12: 21261.58333 | C12: 21578.16667 | D12: 21797.5 | E12: 22114 | F12: 22333.08333 | H12: 25905537 | I12: 17954563.92 | J12: 25899259.5 | L12: 7 | M12: 21261.58333 | N12: 21578.16667 | O12: 21797.5 | P12: 22114 | Q12: 22333.08333 | S12: 25905537 | T12: 17954563.92 | U12: 25899259.5 | V12: 17934659.42 | X12: 7 | Y12: 161721 | Z12: 93418 | AA12: 255139 | AB12: 2989 | AC12: 5060 | AD12: 8049 | AE12: 10118 | AG12: 2408 | AH12: 4076 | AI12: 6484 | AJ12: 8150 | AL12: 3799 | AM12: 6431 | AN12: 10229 | AO12: 12858 | AQ12: 255139 | AR12: 258938 | AS12: 261570 | AT12: 265368 | AU12: 267997 | AW12: 161721 | AX12: 93418.13565 | AY12: 255139 | BA12: 3799 | BB12: 6431 | BC12: 10229 | BD12: 12858 | BF12: 255139 | BG12: 258938 | BH12: 261570 | BI12: 265368 | BJ12: 267997 | BL12: 7 | BM12: 132.6086279 | BN12: 134.5831601 | BO12: 135.9511435 | BP12: 137.9251559 | BQ12: 139.29158 | BS12: 7 | BT12: 198.9129418 | BU12: 201.8747401 | BV12: 203.9267152 | BW12: 206.8877339 | BX12: 208.9373701 | BZ12: 7 | CA12: 66.30431393 | CB12: 67.29158004 | CC12: 67.97557173 | CD12: 68.96257796 | CE12: 69.64579002
A13: 8 | B13: 21623.91667 | C13: 21948.66667 | D13: 22173.58333 | E13: 22498.16667 | F13: 22723 | H13: 26573616.92 | I13: 18411435.25 | J13: 26560539.67 | L13: 8 | M13: 21623.91667 | N13: 21948.66667 | O13: 22173.58333 | P13: 22498.16667 | Q13: 22723 | S13: 26573616.92 | T13: 18411435.25 | U13: 26560539.67 | V13: 18405171.25 | X13: 8 | Y13: 164477 | Z13: 95010 | AA13: 259487 | AB13: 3067 | AC13: 5190 | AD13: 8256 | AE13: 10379 | AG13: 2470 | AH13: 4181 | AI13: 6650 | AJ13: 8360 | AL13: 3897 | AM13: 6596 | AN13: 10491 | AO13: 13189 | AQ13: 259487 | AR13: 263384 | AS13: 266083 | AT13: 269978 | AU13: 272676 | AW13: 164477 | AX13: 95010.13905 | AY13: 259487 | BA13: 3897 | BB13: 6596 | BC13: 10491 | BD13: 13189 | BF13: 259487 | BG13: 263384 | BH13: 266083 | BI13: 269978 | BJ13: 272676 | BL13: 8 | BM13: 134.8685031 | BN13: 136.8939709 | BO13: 138.2967775 | BP13: 140.3212058 | BQ13: 141.7234927 | BS13: 8 | BT13: 202.3027547 | BU13: 205.3409563 | BV13: 207.4451663 | BW13: 210.4818087 | BX13: 212.5852391 | BZ13: 8 | CA13: 67.43425156 | CB13: 68.44698545 | CC13: 69.14838877 | CD13: 70.16060291 | CE13: 70.86174636
A14: 9 | B14: 22304.16667 | C14: 22637.08333 | D14: 22867.41667 | E14: 23200.16667 | F14: 23430.58333 | H14: =ROUND(AQ14+(AR14-AQ14)/3*faktor,0)/12 -> 27242014.75 | I14: =ROUND(AR14+(AS14-AR14)/3*faktor,0)/12 -> 18854997.5 | J14: =ROUND(AS14+(AT14-AS14)/3*faktor,0)/12 -> 27228951.08 | L14: 9 | M14: 22304.16667 | N14: 22637.08333 | O14: 22867.41667 | P14: 23200.16667 | Q14: 23430.58333 | S14: =(BF14+ROUND((BG14-BF14)/3*faktor,0))/12 -> 27242014.75 | T14: =(BG14+ROUND((BH14-BG14)/3*faktor,0))/12 -> 18854997.5 | U14: =(BH14+ROUND((BI14-BH14)/3*faktor,0))/12 -> 27228951.08 | V14: =(BI14+ROUND((BJ14-BI14)/3*faktor,0))/12 -> 18862374.08 | X14: 9 | Y14: 169651 | Z14: 97999 | AA14: 267650 | AB14: 3143 | AC14: 5319 | AD14: 8461 | AE14: 10637 | AG14: 2532 | AH14: 4284 | AI14: 6815 | AJ14: 8568 | AL14: 3995 | AM14: 6759 | AN14: 10752 | AO14: 13517 | AP14: =AR14/12 -> 22637.08333 | AQ14: 267650 | AR14: =ROUND($AA14+AL14,0) -> 271645 | AS14: =$AA14+AM14 -> 274409 | AT14: =$AA14+AN14 -> 278402 | AU14: =$AA14+AO14 -> 281167 | AW14: 169651 | AX14: 97998.90015 | AY14: 267650 | BA14: 3995 | BB14: 6759 | BC14: 10752 | BD14: 13517 | BF14: 267650 | BG14: 271645 | BH14: 274409 | BI14: 278402 | BJ14: 281167 | BL14: 9 | BM14: 139.1112266 | BN14: 141.1876299 | BO14: 142.6242204 | BP14: 144.6995842 | BQ14: 146.1366944 | BS14: 9 | BT14: 208.6668399 | BU14: 211.7814449 | BV14: 213.9363306 | BW14: 217.0493763 | BX14: 219.2050416 | BZ14: 9 | CA14: 69.55561331 | CB14: 70.59381497 | CC14: 71.31211019 | CD14: 72.3497921 | CE14: 73.06834719
A15: 10 | B15: 22461.66667 | C15: 22802.83333 | D15: 23038.91667 | E15: 23380 | F15: 23616.25 | H15: 27916703.25 | I15: 19325290.92 | J15: 27910467 | L15: 10 | M15: 22461.66667 | N15: 22802.83333 | O15: 23038.91667 | P15: 23380 | Q15: 23616.25 | S15: 27916703.25 | T15: 19325290.92 | U15: 27910467 | V15: 19339495 | X15: 10 | Y15: 170849 | Z15: 98691 | AA15: 269540 | AB15: 3221 | AC15: 5451 | AD15: 8672 | AE15: 10903 | AG15: 2595 | AH15: 4391 | AI15: 6985 | AJ15: 8782 | AL15: 4094 | AM15: 6927 | AN15: 11020 | AO15: 13855 | AQ15: 269540 | AR15: =$AA15+AL15 -> 273634 | AS15: 276467 | AT15: 280560 | AU15: 283395 | AW15: 170849 | AX15: 98690.92485 | AY15: 269540 | BA15: 4094 | BB15: 6927 | BC15: 11020 | BD15: 13855 | BF15: 269540 | BG15: 273634 | BH15: 276467 | BI15: 280560 | BJ15: 283395 | BL15: 10 | BM15: 140.0935551 | BN15: 142.2214137 | BO15: 143.6938669 | BP15: 145.8212058 | BQ15: 147.2946985 | BS15: 10 | BT15: 210.1403326 | BU15: 213.3321206 | BV15: 215.5408004 | BW15: 218.7318087 | BX15: 220.9420478 | BZ15: 10 | CA15: 70.04677755 | CB15: 71.11070686 | CC15: 71.84693347 | CD15: 72.91060291 | CE15: 73.64734927
A16: 11 | B16: 22889.33333 | C16: 23238.91667 | D16: 23481.08333 | E16: 23830.66667 | F16: 24072.83333 | H16: 28605288.75 | I16: 19823108.5 | J16: 28605880.5 | L16: 11 | M16: 22889.33333 | N16: 23238.91667 | O16: 23481.08333 | P16: 23830.66667 | Q16: 24072.83333 | S16: 28605288.75 | T16: 19823108.5 | U16: 28605880.5 | V16: 19823700.25 | X16: 11 | Y16: 173067 | Z16: =IF(beregningsdato>=$AA$5,ROUND((Y16+$Y$5)*regulering,0),ROUND(Y16*regulering,0)) -> 100570 | AA16: =IF(beregningsdato>=$AA$5,SUM($Y$5,Y16:Z16),SUM(Y16:Z16)) -> 274672 | AB16: 3301 | AC16: 5588 | AD16: 8889 | AE16: 11175 | AF16: 2659 | AG16: 2659 | AH16: 4501 | AI16: 7160 | AJ16: 9002 | AL16: 4195 | AM16: 7101 | AN16: 11296 | AO16: 14202 | AQ16: 274672 | AR16: 278867 | AS16: 281773 | AT16: 285968 | AU16: 288874 | AW16: 173067 | AX16: =IF(beregningsdato>=$AA$5,ROUND((AW16+$Y$5)*regulering,0),ROUND(AW16*regulering,0)) -> 100570 | AY16: =IF(beregningsdato>=$AA$5,SUM($Y$5,AW16:AX16),SUM(AW16:AX16)) -> 274672 | BA16: 4195 | BB16: 7101 | BC16: 11296 | BD16: 14202 | BF16: 274672 | BG16: 278867 | BH16: 281773 | BI16: 285968 | BJ16: 288874 | BL16: 11 | BM16: 142.7609148 | BN16: 144.9412682 | BO16: 146.4516632 | BP16: 148.6320166 | BQ16: 150.1424116 | BS16: 11 | BT16: 214.1413721 | BU16: 217.4119023 | BV16: 219.6774948 | BW16: 222.9480249 | BX16: 225.2136175 | BZ16: 11 | CA16: 71.38045738 | CB16: 72.4706341 | CC16: 73.2258316 | CD16: 74.31600832 | CE16: 75.07120582
A17: 12 | B17: 23279.16667 | C17: 23637.58333 | D17: 23885.66667 | E17: 24244.16667 | F17: 24492.25 | H17: 29327903.75 | I17: 20307261.67 | J17: 29335323.67 | L17: 12 | M17: 23279.16667 | N17: 23637.58333 | O17: 23885.66667 | P17: 24244.16667 | Q17: 24492.25 | S17: 29327903.75 | T17: 20307261.67 | U17: 29335323.67 | V17: 20307868.25 | X17: 12 | Y17: 176032 | Z17: =IF(beregningsdato>=$AA$5,ROUND((Y17+$Y$5)*regulering,0),ROUND(Y17*regulering,0)) -> 102283 | AA17: 279350 | AB17: 3384 | AC17: 5727 | AD17: 9112 | AE17: 11455 | AF17: 2726 | AG17: 2726 | AH17: 4613 | AI17: 7340 | AJ17: 9227 | AL17: 4301 | AM17: 7278 | AN17: 11580 | AO17: 14557 | AQ17: 279350 | AR17: 283651 | AS17: 286628 | AT17: 290930 | AU17: 293907 | AW17: 176032 | AX17: =IF(beregningsdato>=$AA$5,ROUND((AW17+$Y$5)*regulering,0),ROUND(AW17*regulering,0)) -> 102283 | AY17: 279350 | BA17: 4301 | BB17: 7278 | BC17: 11580 | BD17: 14557 | BF17: 279350 | BG17: 283651 | BH17: 286628 | BI17: 290930 | BJ17: 293907 | BL17: 12 | BM17: 145.1923077 | BN17: 147.4277547 | BO17: 148.975052 | BP17: 151.2110187 | BQ17: 152.758316 | BS17: 12 | BT17: 217.7884615 | BU17: 221.141632 | BV17: 223.462578 | BW17: 226.8165281 | BX17: 229.137474 | BZ17: 12 | CA17: 72.59615385 | CB17: 73.71387734 | CC17: 74.48752599 | CD17: 75.60550936 | CE17: 76.379158
A18: 13 | B18: 23680 | C18: 24047.5 | D18: 24301.83333 | E18: 24669.33333 | F18: 24923.75 | H18: 30070970 | I18: 20818679.92 | J18: 30071591.83 | L18: 13 | M18: 23680 | N18: 24047.5 | O18: 24301.83333 | P18: 24669.33333 | Q18: 24923.75 | S18: 30070970 | T18: 20818679.92 | U18: 30071591.83 | V18: 20826115.25 | X18: 13 | Y18: 179081 | Z18: =IF(beregningsdato>=$AA$5,ROUND((Y18+$Y$5)*regulering,0),ROUND(Y18*regulering,0)) -> 104044 | AA18: 284160 | AB18: 3470 | AC18: 5872 | AD18: 9342 | AE18: 11744 | AF18: 2795 | AG18: 2795 | AH18: 4730 | AI18: 7525 | AJ18: 9460 | AL18: 4410 | AM18: 7462 | AN18: 11872 | AO18: 14925 | AQ18: 284160 | AR18: 288570 | AS18: 291622 | AT18: 296032 | AU18: 299085 | AW18: 179081 | AX18: =IF(beregningsdato>=$AA$5,ROUND((AW18+$Y$5)*regulering,0),ROUND(AW18*regulering,0)) -> 104044 | AY18: 284160 | BA18: 4410 | BB18: 7462 | BC18: 11872 | BD18: 14925 | BF18: 284160 | BG18: 288570 | BH18: 291622 | BI18: 296032 | BJ18: 299085 | BL18: 13 | BM18: 147.6923077 | BN18: 149.9844075 | BO18: 151.5706861 | BP18: 153.8627859 | BQ18: 155.4495842 | BS18: 13 | BT18: 221.5384615 | BU18: 224.9766112 | BV18: 227.3560291 | BW18: 230.7941788 | BX18: 233.1743763 | BZ18: 13 | CA18: 73.84615385 | CB18: 74.99220374 | CC18: 75.78534304 | CD18: 76.93139293 | CE18: 77.7247921
A19: 14 | B19: 24091.91667 | C19: 24468.58333 | D19: 24729.25 | E19: 25106.08333 | F19: 25366.91667 | H19: 30820860.83 | I19: 21336922.83 | J19: 30835125 | L19: 14 | M19: 24091.91667 | N19: 24468.58333 | O19: 24729.25 | P19: 25106.08333 | Q19: 25366.91667 | S19: 30820860.83 | T19: 21336922.83 | U19: 30835125 | V19: 21351187.17 | X19: 14 | Y19: 182214 | Z19: 105854 | AA19: 289103 | AB19: 3557 | AC19: 6019 | AD19: 9577 | AE19: 12039 | AF19: 2865 | AG19: 2865 | AH19: 4848 | AI19: 7714 | AJ19: 9698 | AL19: 4520 | AM19: 7648 | AN19: 12170 | AO19: 15300 | AQ19: 289103 | AR19: 293623 | AS19: 296751 | AT19: 301273 | AU19: 304403 | AW19: 182214 | AX19: 105854 | AY19: 289103 | BA19: 4520 | BB19: 7648 | BC19: 12170 | BD19: 15300 | BF19: 289103 | BG19: 293623 | BH19: 296751 | BI19: 301273 | BJ19: 304403 | BL19: 14 | BM19: 150.2614345 | BN19: 152.6107069 | BO19: 154.2364865 | BP19: 156.5867983 | BQ19: 158.2136175 | BS19: 14 | BT19: 225.3921518 | BU19: 228.9160603 | BV19: 231.3547297 | BW19: 234.8801975 | BX19: 237.3204262 | BZ19: 14 | CA19: 75.13071726 | CB19: 76.30535343 | CC19: 77.11824324 | CD19: 78.29339917 | CE19: 79.10680873
A20: 15 | B20: 24498.66667 | C20: 24884.83333 | D20: 25152.33333 | E20: 25538.33333 | F20: 25805.75 | H20: 31598000.25 | I20: 21896041.5 | J20: 31585027 | L20: 15 | M20: 24498.66667 | N20: 24884.83333 | O20: 25152.33333 | P20: 25538.33333 | Q20: 25805.75 | S20: 31598000.25 | T20: 21896041.5 | U20: 31585027 | V20: 21889881.58 | X20: 15 | Y20: 185308 | Z20: 107641 | AA20: 293984 | AB20: 3646 | AC20: 6172 | AD20: 9818 | AE20: 12343 | AF20: 2937 | AG20: 2937 | AH20: 4972 | AI20: 7908 | AJ20: 9942 | AL20: 4634 | AM20: 7844 | AN20: 12476 | AO20: 15685 | AQ20: 293984 | AR20: 298618 | AS20: 301828 | AT20: 306460 | AU20: 309669 | AW20: 185308 | AX20: 107641 | AY20: 293984 | BA20: 4634 | BB20: 7844 | BC20: 12476 | BD20: 15685 | BF20: 293984 | BG20: 298618 | BH20: 301828 | BI20: 306460 | BJ20: 309669 | BL20: 15 | BM20: 152.7983368 | BN20: 155.2068607 | BO20: 156.8752599 | BP20: 159.2827443 | BQ20: 160.9506237 | BS20: 15 | BT20: 229.1975052 | BU20: 232.8102911 | BV20: 235.3128898 | BW20: 238.9241164 | BX20: 241.4259356 | BZ20: 15 | CA20: 76.3991684 | CB20: 77.60343035 | CC20: 78.43762994 | CD20: 79.64137214 | CE20: 80.47531185
A21: 16 | B21: 24915 | C21: 25310.83333 | D21: 25585 | E21: 25980.83333 | F21: 26255.25 | H21: 32388776.08 | I21: 22441543.08 | J21: 32389446.08 | L21: 16 | M21: 24915 | N21: 25310.83333 | O21: 25585 | P21: 25980.83333 | Q21: 26255.25 | S21: 32388776.08 | T21: 22441543.08 | U21: 32389446.08 | V21: 22462653.42 | X21: 16 | Y21: 188475 | Z21: 109470 | AA21: 298980 | AB21: 3738 | AC21: 6327 | AD21: 10065 | AE21: 12655 | AF21: 3011 | AG21: 3011 | AH21: 5096 | AI21: 8107 | AJ21: 10194 | AL21: 4750 | AM21: 8040 | AN21: 12790 | AO21: 16083 | AQ21: 298980 | AR21: 303730 | AS21: 307020 | AT21: 311770 | AU21: 315063 | AW21: 188475 | AX21: 109470 | AY21: 298980 | BA21: 4750 | BB21: 8040 | BC21: 12790 | BD21: 16083 | BF21: 298980 | BG21: 303730 | BH21: 307020 | BI21: 311770 | BJ21: 315063 | BL21: 16 | BM21: 155.3950104 | BN21: 157.8638254 | BO21: 159.5738046 | BP21: 162.0426195 | BQ21: 163.754158 | BS21: 16 | BT21: 233.0925156 | BU21: 236.795738 | BV21: 239.3607069 | BW21: 243.0639293 | BX21: 245.631237 | BZ21: 16 | CA21: 77.6975052 | CB21: 78.93191268 | CC21: 79.78690229 | CD21: 81.02130977 | CE21: 81.877079
A22: 17 | B22: =AQ22/12 -> 25260.91667 | C22: 25668.75 | D22: 25951.16667 | E22: 26359.08333 | F22: 26641.33333 | H22: 33370258 | I22: 23116432 | J22: 33377761.75 | L22: 17 | M22: =BF22/12 -> 25260.91667 | N22: 25668.75 | O22: 25951.16667 | P22: 26359.08333 | Q22: 26641.33333 | S22: 33370258 | T22: 23116432 | U22: 33377761.75 | V22: 23103495.42 | X22: 17 | Y22: 191106 | Z22: 110990 | AA22: 303131 | AB22: 3851 | AC22: 6518 | AD22: 10370 | AE22: 13035 | AF22: 3102 | AG22: 3102 | AH22: 5250 | AI22: 8353 | AJ22: 10500 | AL22: 4894 | AM22: 8283 | AN22: 13178 | AO22: 16565 | AQ22: 303131 | AR22: 308025 | AS22: 311414 | AT22: 316309 | AU22: 319696 | AW22: 191106 | AX22: 110990 | AY22: 303131 | BA22: 4894 | BB22: 8283 | BC22: 13178 | BD22: 16565 | BF22: 303131 | BG22: =$BF22+BA22 -> 308025 | BH22: 311414 | BI22: 316309 | BJ22: 319696 | BL22: 17 | BM22: =AQ22/1924 -> 157.5524948 | BN22: 160.0961538 | BO22: 161.8575884 | BP22: 164.4017672 | BQ22: 166.1621622 | BS22: 17 | BT22: 236.3287422 | BU22: 240.1442308 | BV22: 242.7863825 | BW22: 246.6026507 | BX22: 249.2432432 | BZ22: 17 | CA22: =AQ22/1924/2 -> 78.7762474 | CB22: 80.04807692 | CC22: 80.92879418 | CD22: 82.20088358 | CE22: 83.08108108
A23: 18 | B23: 25722.25 | C23: 26140.5 | D23: 26429.91667 | E23: 26848.33333 | F23: 27137.83333 | H23: 34222399.92 | I23: 23689233.08 | J23: 34236734.5 | L23: 18 | M23: 25722.25 | N23: 26140.5 | O23: 26429.91667 | P23: 26848.33333 | Q23: 27137.83333 | S23: 34222399.92 | T23: 23689233.08 | U23: 34236734.5 | V23: 23696754.33 | X23: 18 | Y23: 194615 | Z23: 113017 | AA23: 308667 | AB23: 3949 | AC23: 6683 | AD23: 10633 | AE23: 13367 | AF23: 3181 | AG23: 3181 | AH23: 5383 | AI23: 8565 | AJ23: 10767 | AL23: 5019 | AM23: 8492 | AN23: 13513 | AO23: 16987 | AQ23: 308667 | AR23: 313686 | AS23: 317159 | AT23: 322180 | AU23: 325654 | AW23: 194615 | AX23: 113017 | AY23: 308667 | BA23: 5019 | BB23: 8492 | BC23: 13513 | BD23: 16987 | BF23: 308667 | BG23: 313686 | BH23: 317159 | BI23: 322180 | BJ23: 325654 | BL23: 18 | BM23: 160.4298337 | BN23: 163.0384615 | BO23: 164.8435551 | BP23: 167.4532225 | BQ23: 169.2588358 | BS23: 18 | BT23: =AQ23/1924*1.5 -> 240.6447505 | BU23: 244.5576923 | BV23: 247.2653326 | BW23: 251.1798337 | BX23: 253.8882536 | BZ23: 18 | CA23: 80.21491684 | CB23: 81.51923077 | CC23: 82.42177755 | CD23: 83.72661123 | CE23: 84.62941788
A24: 19 | B24: 26067.66667 | C24: 26496.5 | D24: 26793.5 | E24: 27222.33333 | F24: 27519.33333 | H24: 35088052.75 | I24: 24309612.5 | J24: 35088778.58 | L24: 19 | M24: 26067.66667 | N24: 26496.5 | O24: 26793.5 | P24: 27222.33333 | Q24: 27519.33333 | S24: 35088052.75 | T24: 24309612.5 | U24: 35088778.58 | V24: 24310338.33 | X24: 19 | Y24: 197242 | Z24: 114535 | AA24: 312812 | AB24: 4050 | AC24: 6854 | AD24: 10904 | AE24: 13708 | AF24: 3262 | AG24: 3262 | AH24: 5521 | AI24: 8783 | AJ24: 11042 | AL24: 5146 | AM24: 8710 | AN24: 13856 | AO24: 17420 | AQ24: 312812 | AR24: 317958 | AS24: 321522 | AT24: 326668 | AU24: 330232 | AW24: 197242 | AX24: 114535 | AY24: 312812 | BA24: 5146 | BB24: 8710 | BC24: 13856 | BD24: 17420 | BF24: 312812 | BG24: 317958 | BH24: 321522 | BI24: 326668 | BJ24: 330232 | BL24: 19 | BM24: 162.5841996 | BN24: 165.2588358 | BO24: 167.1112266 | BP24: 169.7858628 | BQ24: 171.6382536 | BS24: 19 | BT24: 243.8762994 | BU24: 247.8882536 | BV24: 250.6668399 | BW24: 254.6787942 | BX24: 257.4573805 | BZ24: 19 | CA24: 81.29209979 | CB24: 82.62941788 | CC24: 83.55561331 | CD24: 84.89293139 | CE24: 85.81912682
A25: 20 | B25: 26375.91667 | C25: 26815.66667 | D25: 27120.16667 | E25: 27560.08333 | F25: 27864.41667 | H25: 35980922.25 | I25: 24923141.67 | J25: 35995293.42 | L25: 20 | M25: 26375.91667 | N25: 26815.66667 | O25: 27120.16667 | P25: 27560.08333 | Q25: 27864.41667 | S25: 35980922.25 | T25: 24923141.67 | U25: 35995293.42 | V25: 24910259.17 | X25: 20 | Y25: 199969 | Z25: =IF(beregningsdato>=$AB$5,ROUND((Y25+$AC$5)*regulering,0),ROUND(Y25*regulering,0)) -> 115889 | AA25: =IF(beregningsdato>=$AB$5,SUM($AC$5,Y25:Z25),SUM(Y25:Z25)) -> 316511 | AB25: 4153 | AC25: 7028 | AD25: 11182 | AE25: 14056 | AF25: 3345 | AG25: 3345 | AH25: 5661 | AI25: 9007 | AJ25: 11322 | AL25: 5277 | AM25: 8931 | AN25: 14210 | AO25: 17862 | AQ25: 316511 | AR25: 321788 | AS25: 325442 | AT25: 330721 | AU25: 334373 | AW25: 199969 | AX25: =IF(beregningsdato>=$AB$5,ROUND((AW25+$AC$5)*regulering,0),ROUND(AW25*regulering,0)) -> 115889 | AY25: =IF(beregningsdato>=$AB$5,SUM($AC$5,AW25:AX25),SUM(AW25:AX25)) -> 316511 | BA25: 5277 | BB25: 8931 | BC25: 14210 | BD25: 17862 | BF25: 316511 | BG25: 321788 | BH25: 325442 | BI25: 330721 | BJ25: 334373 | BL25: 20 | BM25: 164.5067568 | BN25: 167.2494802 | BO25: 169.1486486 | BP25: 171.8924116 | BQ25: 173.7905405 | BS25: 20 | BT25: 246.7601351 | BU25: 250.8742204 | BV25: 253.722973 | BW25: 257.8386175 | BX25: 260.6858108 | BZ25: 20 | CA25: 82.25337838 | CB25: 83.62474012 | CC25: 84.57432432 | CD25: 85.94620582 | CE25: 86.89527027
A26: 21 | B26: 26812 | C26: 27263.08333 | D26: 27575.33333 | E26: 28026.41667 | F26: 28338.66667 | H26: 36907986.75 | I26: 25557239.42 | J26: 36908750.08 | L26: 21 | M26: 26812 | N26: 27263.08333 | O26: 27575.33333 | P26: 28026.41667 | Q26: 28338.66667 | S26: 36907986.75 | T26: 25557239.42 | U26: 36908750.08 | V26: 25558002.75 | X26: 21 | Y26: 203286 | Z26: =IF(beregningsdato>=$AB$5,ROUND((Y26+$AC$5)*regulering,0),ROUND(Y26*regulering,0)) -> 117805 | AA26: =IF(beregningsdato>=$AB$5,SUM($AC$5,Y26:Z26),SUM(Y26:Z26)) -> 321744 | AB26: 4259 | AC26: 7208 | AD26: 11467 | AE26: 14416 | AF26: 3431 | AG26: 3431 | AH26: 5806 | AI26: 9237 | AJ26: 11612 | AL26: =ROUND(VLOOKUP($X26,$X:$AJ,(4+AL$4)+$AM$5)*(1+$AL$5),0) -> 5413 | AM26: 9160 | AN26: 14573 | AO26: 18320 | AQ26: 321744 | AR26: 327157 | AS26: 330904 | AT26: 336317 | AU26: 340064 | AW26: 203286 | AX26: =IF(beregningsdato>=$AB$5,ROUND((AW26+$AC$5)*regulering,0),ROUND(AW26*regulering,0)) -> 117805 | AY26: =IF(beregningsdato>=$AB$5,SUM($AC$5,AW26:AX26),SUM(AW26:AX26)) -> 321744 | BA26: 5413 | BB26: 9160 | BC26: 14573 | BD26: 18320 | BF26: 321744 | BG26: 327157 | BH26: 330904 | BI26: 336317 | BJ26: 340064 | BL26: 21 | BM26: 167.2266112 | BN26: 170.0400208 | BO26: 171.987526 | BP26: 174.8009356 | BQ26: 176.7484407 | BS26: 21 | BT26: 250.8399168 | BU26: 255.0600312 | BV26: 257.981289 | BW26: 262.2014033 | BX26: 265.1226611 | BZ26: 21 | CA26: 83.61330561 | CB26: 85.0200104 | CC26: 85.99376299 | CD26: 87.40046778 | CE26: 88.37422037
A27: 22 | B27: 27130.58333 | C27: 27581.66667 | D27: 27893.91667 | E27: 28345 | F27: 28657.25 | H27: 36908305.33 | I27: 25557558 | J27: 36909068.67 | L27: 22 | M27: 27130.58333 | N27: 27581.66667 | O27: 27893.91667 | P27: 28345 | Q27: 28657.25 | S27: 36908305.33 | T27: 25557558 | U27: 36909068.67 | V27: 25558321.33 | X27: 22 | Y27: 206362 | Z27: 119205 | AA27: 325567 | AB27: 4259 | AC27: 7208 | AD27: 11467 | AE27: 14416 | AG27: 3431 | AH27: 5806 | AI27: 9237 | AJ27: 11612 | AL27: 5413 | AM27: 9160 | AN27: 14573 | AO27: 18320 | AQ27: 325567 | AR27: 330980 | AS27: 334727 | AT27: 340140 | AU27: 343887 | AW27: 206362 | AX27: 119205.0093 | AY27: 325567 | BA27: 5413 | BB27: 9160 | BC27: 14573 | BD27: 18320 | BF27: 325567 | BG27: 330980 | BH27: 334727 | BI27: 340140 | BJ27: 343887 | BL27: 22 | BM27: 169.2136175 | BN27: 172.027027 | BO27: 173.9745322 | BP27: 176.7879418 | BQ27: 178.735447 | BS27: 22 | BT27: 253.8204262 | BU27: 258.0405405 | BV27: 260.9617983 | BW27: 265.1819127 | BX27: 268.1031705 | BZ27: 22 | CA27: 84.60680873 | CB27: 86.01351351 | CC27: 86.98726611 | CD27: 88.39397089 | CE27: 89.36772349
A28: 23 | B28: 27563.25 | C28: 28002.08333 | D28: 28305.66667 | E28: 28744.41667 | F28: 29048.08333 | H28: 35907161.67 | I28: 24849380.17 | J28: 35901090.67 | L28: 23 | M28: 27563.25 | N28: 28002.08333 | O28: 28305.66667 | P28: 28744.41667 | Q28: 29048.08333 | S28: 35907161.67 | T28: 24849380.17 | U28: 35901090.67 | V28: 24856936 | X28: 23 | Y28: 209653 | Z28: 121106 | AA28: 330759 | AB28: 4144 | AC28: 7010 | AD28: 11153 | AE28: 14021 | AG28: 3338 | AH28: 5647 | AI28: 8984 | AJ28: 11294 | AL28: 5266 | AM28: 8909 | AN28: 14174 | AO28: 17818 | AQ28: 330759 | AR28: 336025 | AS28: 339668 | AT28: 344933 | AU28: 348577 | AW28: 209653 | AX28: 121106.0554 | AY28: 330759 | BA28: 5266 | BB28: 8909 | BC28: 14174 | BD28: 17818 | BF28: 330759 | BG28: 336025 | BH28: 339668 | BI28: 344933 | BJ28: 348577 | BL28: 23 | BM28: 171.9121622 | BN28: 174.6491684 | BO28: 176.5426195 | BP28: 179.279106 | BQ28: 181.1730769 | BS28: 23 | BT28: 257.8682432 | BU28: 261.9737526 | BV28: 264.8139293 | BW28: 268.918659 | BX28: 271.7596154 | BZ28: 23 | CA28: 85.95608108 | CB28: 87.3245842 | CC28: 88.27130977 | CD28: 89.63955301 | CE28: 90.58653846
A29: 24 | B29: 28009.75 | C29: 28436 | D29: 28731.16667 | E29: 29157.33333 | F29: 29452.41667 | H29: 34878778.08 | I29: 24161656.25 | J29: 34872686.08 | L29: 24 | M29: 28009.75 | N29: 28436 | O29: 28731.16667 | P29: 29157.33333 | Q29: 29452.41667 | S29: 34878778.08 | T29: 24161656.25 | U29: 34872686.08 | V29: 24155564.08 | X29: 24 | Y29: 213049 | Z29: 123068 | AA29: 336117 | AB29: 4025 | AC29: 6812 | AD29: 10837 | AE29: 13623 | AG29: 3242 | AH29: 5487 | AI29: 8729 | AJ29: 10973 | AL29: 5115 | AM29: 8657 | AN29: 13771 | AO29: 17312 | AQ29: 336117 | AR29: 341232 | AS29: 344774 | AT29: 349888 | AU29: 353429 | AW29: 213049 | AX29: 123067.7548 | AY29: 336117 | BA29: 5115 | BB29: 8657 | BC29: 13771 | BD29: 17312 | BF29: 336117 | BG29: 341232 | BH29: 344774 | BI29: 349888 | BJ29: 353429 | BL29: 24 | BM29: 174.6969854 | BN29: 177.3555094 | BO29: 179.1964657 | BP29: 181.8544699 | BQ29: 183.6949064 | BS29: 24 | BT29: 262.0454782 | BU29: 266.033264 | BV29: 268.7946985 | BW29: 272.7817048 | BX29: 275.5423597 | BZ29: 24 | CA29: 87.34849272 | CB29: 88.67775468 | CC29: 89.59823285 | CD29: 90.92723493 | CE29: 91.84745322
A30: 25 | B30: 28465.5 | C30: 28878.41667 | D30: 29164.25 | E30: 29577.33333 | F30: =AU30/12 -> 29863.16667 | H30: 33789082.75 | I30: 23398992.83 | J30: 33803408.33 | L30: 25 | M30: 28465.5 | N30: 28878.41667 | O30: 29164.25 | P30: 29577.33333 | Q30: 29863.16667 | S30: 33789082.75 | T30: 23398992.83 | U30: 33803408.33 | V30: 23399691.75 | X30: 25 | Y30: 216516 | Z30: 125070 | AA30: 341586 | AB30: 3899 | AC30: 6598 | AD30: 10499 | AE30: 13198 | AG30: 3141 | AH30: 5315 | AI30: 8457 | AJ30: 10631 | AL30: 4955 | AM30: 8385 | AN30: 13342 | AO30: 16772 | AQ30: 341586 | AR30: 346541 | AS30: 349971 | AT30: 354928 | AU30: 358358 | AW30: 216516 | AX30: 125070.4674 | AY30: 341586 | BA30: 4955 | BB30: 8385 | BC30: 13342 | BD30: 16772 | BF30: 341586 | BG30: 346541 | BH30: 349971 | BI30: 354928 | BJ30: 358358 | BL30: 25 | BM30: 177.539501 | BN30: 180.1148649 | BO30: 181.8976091 | BP30: 184.4740125 | BQ30: 186.2567568 | BS30: 25 | BT30: 266.3092516 | BU30: 270.1722973 | BV30: 272.8464137 | BW30: 276.7110187 | BX30: 279.3851351 | BZ30: 25 | CA30: 88.76975052 | CB30: 90.05743243 | CC30: 90.94880457 | CD30: 92.23700624 | CE30: 93.12837838
A31: 26 | B31: 28931.83333 | C31: 29330.75 | D31: 29606.66667 | E31: 30005.33333 | F31: 30281.41667 | H31: 32644890.42 | I31: 22588645.33 | J31: 32625124.92 | L31: 26 | M31: 28931.83333 | N31: 29330.75 | O31: 29606.66667 | P31: 30005.33333 | Q31: 30281.41667 | S31: 32644890.42 | T31: 22588645.33 | U31: 32625124.92 | V31: 22602946.75 | X31: 26 | Y31: 220063 | Z31: 127119 | AA31: 347182 | AB31: 3766 | AC31: 6372 | AD31: 10137 | AE31: 12743 | AG31: 3034 | AH31: 5133 | AI31: 8165 | AJ31: 10265 | AL31: 4787 | AM31: 8098 | AN31: 12882 | AO31: 16195 | AQ31: 347182 | AR31: 351969 | AS31: 355280 | AT31: 360064 | AU31: 363377 | AW31: 220063 | AX31: 127119.392 | AY31: 347182 | BA31: 4787 | BB31: 8098 | BC31: 12882 | BD31: 16195 | BF31: 347182 | BG31: 351969 | BH31: 355280 | BI31: 360064 | BJ31: 363377 | BL31: 26 | BM31: 180.4480249 | BN31: 182.9360707 | BO31: 184.6569647 | BP31: 187.1434511 | BQ31: 188.8653846 | BS31: 26 | BT31: 270.6720374 | BU31: 274.404106 | BV31: 276.985447 | BW31: 280.7151767 | BX31: 283.2980769 | BZ31: 26 | CA31: 90.22401247 | CB31: 91.46803534 | CC31: 92.32848233 | CD31: 93.57172557 | CE31: 94.43269231
A32: 27 | B32: 29408.83333 | C32: 29792.33333 | D32: 30057.66667 | E32: 30441.16667 | F32: 30706.58333 | H32: 31384880.17 | I32: 21723799.42 | J32: 31385529 | L32: 27 | M32: 29408.83333 | N32: 29792.33333 | O32: 30057.66667 | P32: 30441.16667 | Q32: 30706.58333 | S32: 31384880.17 | T32: 21723799.42 | U32: 31385529 | V32: 21731261.75 | X32: 27 | Y32: 223691 | Z32: 129215 | AA32: 352906 | AB32: 3621 | AC32: 6127 | AD32: 9748 | AE32: 12254 | AG32: 2917 | AH32: 4935 | AI32: 7852 | AJ32: 9871 | AL32: 4602 | AM32: 7786 | AN32: 12388 | AO32: 15573 | AQ32: 352906 | AR32: 357508 | AS32: 360692 | AT32: 365294 | AU32: 368479 | AW32: 223691 | AX32: 129215.1061 | AY32: 352906 | BA32: 4602 | BB32: 7786 | BC32: 12388 | BD32: 15573 | BF32: 352906 | BG32: 357508 | BH32: 360692 | BI32: 365294 | BJ32: 368479 | BL32: 27 | BM32: 183.4230769 | BN32: 185.8149688 | BO32: 187.4698545 | BP32: 189.8617464 | BQ32: 191.5171518 | BS32: 27 | BT32: 275.1346154 | BU32: 278.7224532 | BV32: 281.2047817 | BW32: 284.7926195 | BX32: 287.2757277 | BZ32: 27 | CA32: 91.71153846 | CB32: 92.90748441 | CC32: 93.73492723 | CD32: 94.93087318 | CE32: 95.75857588
A33: 28 | B33: 29896.33333 | C33: 30263.5 | D33: 30517.66667 | E33: 30884.83333 | F33: 31138.83333 | H33: 30049932.58 | I33: 20811269.08 | J33: 30050553.92 | L33: 28 | M33: 29896.33333 | N33: 30263.5 | O33: 30517.66667 | P33: 30884.83333 | Q33: 31138.83333 | S33: 30049932.58 | T33: 20811269.08 | U33: 30050553.92 | V33: 20798263.5 | X33: 28 | Y33: 227399 | Z33: 131357 | AA33: 358756 | AB33: 3467 | AC33: 5867 | AD33: 9334 | AE33: 11733 | AG33: 2793 | AH33: 4726 | AI33: 7519 | AJ33: 9451 | AL33: 4406 | AM33: 7456 | AN33: 11862 | AO33: 14910 | AQ33: 358756 | AR33: 363162 | AS33: 366212 | AT33: 370618 | AU33: 373666 | AW33: 227399 | AX33: 131357.0323 | AY33: 358756 | BA33: 4406 | BB33: 7456 | BC33: 11862 | BD33: 14910 | BF33: 358756 | BG33: 363162 | BH33: 366212 | BI33: 370618 | BJ33: 373666 | BL33: 28 | BM33: 186.4636175 | BN33: 188.7536383 | BO33: 190.3388773 | BP33: 192.6288981 | BQ33: 194.2130977 | BS33: 28 | BT33: 279.6954262 | BU33: 283.1304574 | BV33: 285.508316 | BW33: 288.9433472 | BX33: 291.3196466 | BZ33: 28 | CA33: 93.23180873 | CB33: 94.37681913 | CC33: 95.16943867 | CD33: 96.31444906 | CE33: 97.10654886
A34: 29 | B34: 30394.83333 | C34: 30744.66667 | D34: 30986.75 | E34: 31336.41667 | F34: 31578.58333 | H34: 28633234.58 | I34: 19823800.75 | J34: 28620199.67 | L34: 29 | M34: 30394.83333 | N34: 30744.66667 | O34: 30986.75 | P34: 31336.41667 | Q34: 31578.58333 | S34: 28633234.58 | T34: 19823800.75 | U34: 28620199.67 | V34: 19831206 | X34: 29 | Y34: 231191 | Z34: 133547 | AA34: 364738 | AB34: 3303 | AC34: 5589 | AD34: 8891 | AE34: 11178 | AG34: 2661 | AH34: 4502 | AI34: 7162 | AJ34: 9004 | AL34: 4198 | AM34: 7103 | AN34: 11299 | AO34: 14205 | AQ34: 364738 | AR34: 368936 | AS34: 371841 | AT34: 376037 | AU34: 378943 | AW34: 231191 | AX34: 133547.4812 | AY34: 364738 | BA34: 4198 | BB34: 7103 | BC34: 11299 | BD34: 14205 | BF34: 364738 | BG34: 368936 | BH34: 371841 | BI34: 376037 | BJ34: 378943 | BL34: 29 | BM34: 189.5727651 | BN34: 191.7546778 | BO34: 193.264553 | BP34: 195.4454262 | BQ34: 196.9558212 | BS34: 29 | BT34: 284.3591476 | BU34: 287.6320166 | BV34: 289.8968295 | BW34: 293.1681393 | BX34: 295.4337318 | BZ34: 29 | CA34: 94.78638254 | CB34: 95.87733888 | CC34: 96.63227651 | CD34: 97.7227131 | CE34: 98.4779106
A35: 30 | B35: 30904.16667 | C35: 31235.33333 | D35: 31464.75 | E35: 31795.83333 | F35: 32025.08333 | H35: 27107532.42 | I35: 18788647.92 | J35: 27101279.5 | L35: 30 | M35: 30904.16667 | N35: 31235.33333 | O35: 31464.75 | P35: 31795.83333 | Q35: 32025.08333 | S35: 27107532.42 | T35: 18788647.92 | U35: 27101279.5 | V35: 18775581.5 | X35: 30 | Y35: 235065 | Z35: 135785 | AA35: 370850 | AB35: 3127 | AC35: 5293 | AD35: 8420 | AE35: 10585 | AG35: 2519 | AH35: 4264 | AI35: 6782 | AJ35: 8526 | AL35: 3974 | AM35: 6727 | AN35: 10700 | AO35: 13451 | AQ35: 370850 | AR35: 374824 | AS35: 377577 | AT35: 381550 | AU35: 384301 | AW35: 235065 | AX35: 135785.2973 | AY35: 370850 | BA35: 3974 | BB35: 6727 | BC35: 10700 | BD35: 13451 | BF35: 370850 | BG35: 374824 | BH35: 377577 | BI35: 381550 | BJ35: 384301 | BL35: 30 | BM35: 192.7494802 | BN35: 194.8149688 | BO35: 196.245842 | BP35: 198.3108108 | BQ35: 199.7406445 | BS35: 30 | BT35: 289.1242204 | BU35: 292.2224532 | BV35: 294.368763 | BW35: 297.4662162 | BX35: 299.6109667 | BZ35: 30 | CA35: 96.37474012 | CB35: 97.40748441 | CC35: 98.122921 | CD35: 99.15540541 | CE35: 99.87032225
A36: 31 | B36: 31425.08333 | C36: 31736.66667 | D36: 31952.25 | E36: 32263.83333 | F36: 32479.5 | H36: 25506893.83 | I36: 17658117.42 | J36: 25507421 | L36: 31 | M36: 31425.08333 | N36: 31736.66667 | O36: 31952.25 | P36: 32263.83333 | Q36: 32479.5 | S36: 25506893.83 | T36: 17658117.42 | U36: 25507421 | V36: 17665458.08 | X36: 31 | Y36: 239027 | Z36: 138074 | AA36: 377101 | AB36: 2942 | AC36: 4978 | AD36: 7920 | AE36: 9956 | AG36: 2370 | AH36: 4010 | AI36: 6380 | AJ36: 8020 | AL36: 3739 | AM36: 6326 | AN36: 10065 | AO36: 12653 | AQ36: 377101 | AR36: 380840 | AS36: 383427 | AT36: 387166 | AU36: 389754 | AW36: 239027 | AX36: 138073.9465 | AY36: 377101 | BA36: 3739 | BB36: 6326 | BC36: 10065 | BD36: 12653 | BF36: 377101 | BG36: 380840 | BH36: 383427 | BI36: 387166 | BJ36: 389754 | BL36: 31 | BM36: 195.9984407 | BN36: 197.9417879 | BO36: 199.2863825 | BP36: 201.2297297 | BQ36: 202.5748441 | BS36: 31 | BT36: 293.9976611 | BU36: 296.9126819 | BV36: 298.9295738 | BW36: 301.8445946 | BX36: 303.8622661 | BZ36: 31 | CA36: 97.99922037 | CB36: 98.97089397 | CC36: 99.64319127 | CD36: 100.6148649 | CE36: 101.287422
A37: 32 | B37: 31957.5 | C37: 32248.08333 | D37: 32449.08333 | E37: 32739.75 | F37: 32940.91667 | H37: 23790438.25 | I37: 16466276.08 | J37: 23797743.33 | L37: 32 | M37: 31957.5 | N37: 32248.08333 | O37: 32449.08333 | P37: 32739.75 | Q37: 32940.91667 | S37: 23790438.25 | T37: 16466276.08 | U37: 23797743.33 | V37: 16480394.67 | X37: 32 | Y37: 243077 | Z37: 140413 | AA37: 383490 | AB37: 2743 | AC37: 4642 | AD37: 7387 | AE37: 9286 | AG37: 2210 | AH37: 3739 | AI37: 5950 | AJ37: 7480 | AL37: 3487 | AM37: 5899 | AN37: 9387 | AO37: 11801 | AQ37: 383490 | AR37: 386977 | AS37: 389389 | AT37: 392877 | AU37: 395291 | AW37: 243077 | AX37: 140413.4291 | AY37: 383490 | BA37: 3487 | BB37: 5899 | BC37: 9387 | BD37: 11801 | BF37: 383490 | BG37: 386977 | BH37: 389389 | BI37: 392877 | BJ37: 395291 | BL37: 32 | BM37: 199.3191268 | BN37: 201.1314969 | BO37: 202.3851351 | BP37: 204.1980249 | BQ37: 205.4527027 | BS37: 32 | BT37: 298.9786902 | BU37: 301.6972453 | BV37: 303.5777027 | BW37: 306.2970374 | BX37: 308.1790541 | BZ37: 32 | CA37: 99.65956341 | CB37: 100.5657484 | CC37: 101.1925676 | CD37: 102.0990125 | CE37: 102.7263514
A38: 33 | B38: 32501.58333 | C38: 32769.91667 | D38: 32955.66667 | E38: 33224 | F38: 33409.66667 | H38: 21971792.67 | I38: 15219937.58 | J38: 21972246.75 | L38: 33 | M38: 32501.58333 | N38: 32769.91667 | O38: 32955.66667 | P38: 33224 | Q38: 33409.66667 | S38: 21971792.67 | T38: 15219937.58 | U38: 21972246.75 | V38: 15213578.25 | X38: 33 | Y38: 247215 | Z38: =ROUND(Y38*regulering,0) -> 142804 | AA38: 390019 | AB38: 2534 | AC38: 4288 | AD38: 6822 | AE38: 8575 | AG38: 2041 | AH38: 3454 | AI38: 5495 | AJ38: 6907 | AL38: 3220 | AM38: 5449 | AN38: 8669 | AO38: 10897 | AQ38: 390019 | AR38: 393239 | AS38: 395468 | AT38: 398688 | AU38: 400916 | AW38: 247215 | AX38: =AW38*regulering -> 142803.7448 | AY38: 390019 | BA38: =ROUND(AL38*udbygningspct,0) -> 3220 | BB38: =ROUND(AM38*udbygningspct,0) -> 5449 | BC38: =ROUND(AN38*udbygningspct,0) -> 8669 | BD38: =ROUND(AO38*udbygningspct,0) -> 10897 | BF38: 390019 | BG38: 393239 | BH38: 395468 | BI38: 398688 | BJ38: 400916 | BL38: 33 | BM38: 202.712578 | BN38: 204.3861746 | BO38: 205.5446985 | BP38: 207.2182952 | BQ38: 208.3762994 | BS38: 33 | BT38: 304.0688669 | BU38: 306.579262 | BV38: 308.3170478 | BW38: 310.8274428 | BX38: 312.5644491 | BZ38: 33 | CA38: 101.356289 | CB38: 102.1930873 | CC38: 102.7723493 | CD38: 103.6091476 | CE38: 104.1881497
A39: 34 | B39: 33058.25 | C39: 33303.08333 | D39: 33472.41667 | E39: 33717.16667 | F39: 33886.66667 | H39: 20050958 | I39: 13878222.17 | J39: 20044558.75 | L39: 34 | M39: 33058.25 | N39: 33303.08333 | O39: 33472.41667 | P39: 33717.16667 | Q39: 33886.66667 | S39: 20050958 | T39: 13878222.17 | U39: 20044558.75 | V39: 13892263.17 | X39: 34 | Y39: 251449 | Z39: 145250 | AA39: 396699 | AB39: 2311 | AC39: 3911 | AD39: 6222 | AE39: 7823 | AG39: 1862 | AH39: 3150 | AI39: 5012 | AJ39: 6301 | AL39: 2938 | AM39: 4970 | AN39: 7907 | AO39: 9941 | AQ39: 396699 | AR39: 399637 | AS39: 401669 | AT39: 404606 | AU39: 406640 | AW39: 251449 | AX39: 145249.5149 | AY39: 396699 | BA39: 2938 | BB39: 4970 | BC39: 7907 | BD39: 9941 | BF39: 396699 | BG39: 399637 | BH39: 401669 | BI39: 404606 | BJ39: 406640 | BL39: 34 | BM39: 206.1845114 | BN39: 207.7115385 | BO39: 208.7676715 | BP39: 210.2941788 | BQ39: 211.3513514 | BS39: 34 | BT39: 309.2767672 | BU39: 311.5673077 | BV39: 313.1515073 | BW39: 315.4412682 | BX39: 317.027027 | BZ39: 34 | CA39: 103.0922557 | CB39: 103.8557692 | CC39: 104.3838358 | CD39: 105.1470894 | CE39: 105.6756757
A40: 35 | B40: 33626.58333 | C40: 33846.41667 | D40: 33998.5 | E40: 34218.16667 | F40: 34370.41667 | H40: 18007493 | I40: 12468382.5 | J40: 17994238.08 | L40: 35 | M40: 33626.58333 | N40: 33846.41667 | O40: 33998.5 | P40: 34218.16667 | Q40: 34370.41667 | S40: 18007493 | T40: 12468382.5 | U40: 17994238.08 | V40: 12482381.17 | X40: 35 | Y40: 255772 | Z40: 147747 | AA40: 403519 | AB40: 2076 | AC40: 3512 | AD40: 5586 | AE40: 7024 | AG40: 1672 | AH40: 2829 | AI40: 4500 | AJ40: 5658 | AL40: 2638 | AM40: 4463 | AN40: 7099 | AO40: 8926 | AQ40: 403519 | AR40: 406157 | AS40: 407982 | AT40: 410618 | AU40: 412445 | AW40: 255772 | AX40: 147746.6958 | AY40: 403519 | BA40: 2638 | BB40: 4463 | BC40: 7099 | BD40: 8926 | BF40: 403519 | BG40: 406157 | BH40: 407982 | BI40: 410618 | BJ40: 412445 | BL40: 35 | BM40: 209.72921 | BN40: 211.1003119 | BO40: 212.0488565 | BP40: 213.4189189 | BQ40: 214.3685031 | BS40: 35 | BT40: 314.593815 | BU40: 316.6504678 | BV40: 318.0732848 | BW40: 320.1283784 | BX40: 321.5527547 | BZ40: 35 | CA40: 104.864605 | CB40: 105.5501559 | CC40: 106.0244283 | CD40: 106.7094595 | CE40: 107.1842516
A41: 36 | B41: 34207.91667 | C41: 34401.33333 | D41: 34535 | E41: 34728.25 | F41: 34862.08333 | H41: 15848212.5 | I41: 10963166.25 | J41: 15834912.67 | L41: 36 | M41: 34207.91667 | N41: 34401.33333 | O41: 34535 | P41: 34728.25 | Q41: 34862.08333 | S41: 15848212.5 | T41: 10963166.25 | U41: 15834912.67 | V41: 10977120 | X41: 36 | Y41: 260194 | Z41: 150301 | AA41: 410495 | AB41: 1826 | AC41: 3089 | AD41: 4914 | AE41: 6177 | AG41: 1471 | AH41: 2488 | AI41: 3958 | AJ41: 4976 | AL41: 2321 | AM41: 3925 | AN41: 6244 | AO41: 7850 | AQ41: 410495 | AR41: 412816 | AS41: 414420 | AT41: 416739 | AU41: 418345 | AW41: 260194 | AX41: 150301.0641 | AY41: 410495 | BA41: 2321 | BB41: 3925 | BC41: 6244 | BD41: 7850 | BF41: 410495 | BG41: 412816 | BH41: 414420 | BI41: 416739 | BJ41: 418345 | BL41: 36 | BM41: 213.3549896 | BN41: 214.5613306 | BO41: 215.3950104 | BP41: 216.6003119 | BQ41: 217.4350312 | BS41: 36 | BT41: 320.0324844 | BU41: 321.8419958 | BV41: 323.0925156 | BW41: 324.9004678 | BX41: 326.1525468 | BZ41: 36 | CA41: 106.6774948 | CB41: 107.2806653 | CC41: 107.6975052 | CD41: 108.3001559 | CE41: 108.7175156
A42: 37 | B42: 34801.91667 | C42: 34967.16667 | D42: 35081.66667 | E42: 35246.91667 | F42: 35361.33333 | H42: 13545862.25 | I42: 9396639.833 | J42: 13546142 | L42: 37 | M42: 34801.91667 | N42: 34967.16667 | O42: 35081.66667 | P42: 35246.91667 | Q42: 35361.33333 | S42: 13545862.25 | T42: 9396639.833 | U42: 13546142 | V42: 9390106.167 | X42: 37 | Y42: 264712 | Z42: 152911 | AA42: 417623 | AB42: 1560 | AC42: 2642 | AD42: 4202 | AE42: 5282 | AG42: 1257 | AH42: 2128 | AI42: 3385 | AJ42: 4255 | AL42: 1983 | AM42: 3357 | AN42: 5340 | AO42: 6713 | AQ42: 417623 | AR42: 419606 | AS42: 420980 | AT42: 422963 | AU42: 424336 | AW42: 264712 | AX42: 152910.8868 | AY42: 417623 | BA42: 1983 | BB42: 3357 | BC42: 5340 | BD42: 6713 | BF42: 417623 | BG42: 419606 | BH42: 420980 | BI42: 422963 | BJ42: 424336 | BL42: 37 | BM42: 217.0597713 | BN42: 218.0904366 | BO42: 218.8045738 | BP42: 219.8352391 | BQ42: 220.5488565 | BS42: 37 | BT42: 325.589657 | BU42: 327.1356549 | BV42: 328.2068607 | BW42: 329.7528586 | BX42: 330.8232848 | BZ42: 37 | CA42: 108.5298857 | CB42: 109.0452183 | CC42: 109.4022869 | CD42: 109.9176195 | CE42: 110.2744283
A43: 38 | B43: 35432.41667 | C43: 35570.75 | D43: 35666.58333 | E43: 35804.83333 | F43: 35900.83333 | H43: 11345750.17 | I43: 7871031.833 | J43: 11339170.92 | L43: 38 | M43: 35432.41667 | N43: 35570.75 | O43: 35666.58333 | P43: 35804.83333 | Q43: 35900.83333 | S43: 11345750.17 | T43: 7871031.833 | U43: 11339170.92 | V43: 7884892.833 | X43: 38 | Y43: 269508 | Z43: 155681 | AA43: 425189 | AB43: 1306 | AC43: 2211 | AD43: 3517 | AE43: 4423 | AG43: 1052 | AH43: 1781 | AI43: 2833 | AJ43: 3563 | AL43: 1660 | AM43: 2810 | AN43: 4469 | AO43: 5621 | AQ43: 425189 | AR43: 426849 | AS43: 427999 | AT43: 429658 | AU43: 430810 | AW43: 269508 | AX43: 155681.2962 | AY43: 425189 | BA43: 1660 | BB43: 2810 | BC43: 4469 | BD43: 5621 | BF43: 425189 | BG43: 426849 | BH43: 427999 | BI43: 429658 | BJ43: 430810 | BL43: 38 | BM43: 220.9922037 | BN43: 221.8549896 | BO43: 222.4527027 | BP43: 223.3149688 | BQ43: 223.9137214 | BS43: 38 | BT43: 331.4883056 | BU43: 332.7824844 | BV43: 333.6790541 | BW43: 334.9724532 | BX43: 335.8705821 | BZ43: 38 | CA43: 110.4961019 | CB43: 110.9274948 | CC43: 111.2263514 | CD43: 111.6574844 | CE43: 111.9568607
A44: 39 | B44: 36065.5 | C44: 36172 | D44: 36245.75 | E44: 36352.25 | F44: 36426.08333 | H44: 8743647.5 | I44: 6066070.333 | J44: 8743827.75 | L44: 39 | M44: 36065.5 | N44: 36172 | O44: 36245.75 | P44: 36352.25 | Q44: 36426.08333 | S44: 8743647.5 | T44: 6066070.333 | U44: 8743827.75 | V44: 6073064 | X44: 39 | Y44: 274323 | Z44: 158463 | AA44: 432786 | AB44: 1006 | AC44: 1702 | AD44: 2708 | AE44: 3405 | AG44: 810 | AH44: 1371 | AI44: 2181 | AJ44: 2743 | AL44: 1278 | AM44: 2163 | AN44: 3441 | AO44: 4327 | AQ44: 432786 | AR44: 434064 | AS44: 434949 | AT44: 436227 | AU44: 437113 | AW44: 274323 | AX44: 158462.681 | AY44: 432786 | BA44: 1278 | BB44: 2163 | BC44: 3441 | BD44: 4327 | BF44: 432786 | BG44: 434064 | BH44: 434949 | BI44: 436227 | BJ44: 437113 | BL44: 39 | BM44: 224.9407484 | BN44: 225.6049896 | BO44: 226.0649688 | BP44: 226.72921 | BQ44: 227.1897089 | BS44: 39 | BT44: 337.4111227 | BU44: 338.4074844 | BV44: 339.0974532 | BW44: 340.093815 | BX44: 340.7845634 | BZ44: 39 | CA44: 112.4703742 | CB44: 112.8024948 | CC44: 113.0324844 | CD44: 113.364605 | CE44: 113.5948545
A45: 40 | B45: 36712.83333 | C45: 36785.66667 | D45: 36836.16667 | E45: 36909.08333 | F45: 36959.58333 | H45: 5991663.25 | I45: 4165733 | J45: 5998600.083 | L45: 40 | M45: 36712.83333 | N45: 36785.66667 | O45: 36836.16667 | P45: 36909.08333 | Q45: 36959.58333 | S45: 5991663.25 | T45: 4165733 | U45: 5998600.083 | V45: 4165856.417 | X45: 40 | Y45: 279247 | Z45: 161307 | AA45: 440554 | AB45: 688 | AC45: 1165 | AD45: 1853 | AE45: 2330 | AG45: 554 | AH45: 938 | AI45: 1493 | AJ45: 1877 | AL45: 874 | AM45: 1480 | AN45: 2355 | AO45: 2961 | AQ45: 440554 | AR45: 441428 | AS45: 442034 | AT45: 442909 | AU45: 443515 | AW45: 279247 | AX45: 161307.0296 | AY45: 440554 | BA45: 874 | BB45: 1480 | BC45: 2355 | BD45: 2961 | BF45: =AY45 -> 440554 | BG45: 441428 | BH45: 442034 | BI45: 442909 | BJ45: 443515 | BL45: 40 | BM45: 228.9781705 | BN45: 229.4324324 | BO45: 229.7474012 | BP45: 230.202183 | BQ45: 230.5171518 | BS45: 40 | BT45: 343.4672557 | BU45: 344.1486486 | BV45: 344.6211019 | BW45: 345.3032744 | BX45: 345.7757277 | BZ45: 40 | CA45: 114.4890852 | CB45: 114.7162162 | CC45: 114.8737006 | CD45: 115.1010915 | CE45: 115.2585759
A46: 41 | B46: 37374.25 | C46: 37411.58333 | D46: 37437.58333 | E46: 37474.83333 | F46: 37500.83333 | H46: 3089797.333 | I46: 2163206.25 | J46: 3083047.25 | L46: 41 | M46: 37374.25 | N46: 37411.58333 | O46: 37437.58333 | P46: 37474.83333 | Q46: 37500.83333 | S46: 3089797.333 | T46: 2163206.25 | U46: 3083047.25 | V46: 2163269.5 | X46: 41 | Y46: 284278 | Z46: 164213 | AA46: 448491 | AB46: 353 | AC46: 598 | AD46: 950 | AE46: 1195 | AG46: 284 | AH46: 482 | AI46: 765 | AJ46: 963 | AL46: =ROUND(VLOOKUP($X46,$X:$AJ,(4+AL$4)+$AM$5)*(1+$AL$5),0) -> 448 | AM46: 760 | AN46: 1207 | AO46: 1519 | AQ46: 448491 | AR46: 448939 | AS46: 449251 | AT46: 449698 | AU46: 450010 | AW46: 284278 | AX46: 164213.1867 | AY46: 448491 | BA46: 448 | BB46: 760 | BC46: 1207 | BD46: 1519 | BF46: =AY46 -> 448491 | BG46: 448939 | BH46: 449251 | BI46: 449698 | BJ46: 450010 | BL46: 41 | BM46: 233.1034304 | BN46: 233.3362786 | BO46: 233.4984407 | BP46: 233.7307692 | BQ46: 233.8929314 | BS46: 41 | BT46: 349.6551455 | BU46: 350.0044179 | BV46: 350.2476611 | BW46: 350.5961538 | BX46: 350.8393971 | BZ46: 41 | CA46: 116.5517152 | CB46: 116.6681393 | CC46: 116.7492204 | CD46: 116.8653846 | CE46: 116.9464657
A47: 42 | B47: 38050 | C47: 38050 | D47: 38050 | E47: 38050 | F47: 38050 | H47: 38050 | I47: 38050 | J47: 38050 | L47: 42 | M47: 38050 | N47: 38050 | O47: 38050 | P47: 38050 | Q47: 38050 | S47: 38050 | T47: 38050 | U47: 38050 | V47: 38050 | X47: 42 | Y47: 289418 | Z47: 167182 | AA47: 456600 | AB47: 0 | AC47: 0 | AD47: 0 | AE47: 0 | AL47: 0 | AM47: 0 | AN47: 0 | AO47: 0 | AQ47: 456600 | AR47: 456600 | AS47: 456600 | AT47: 456600 | AU47: 456600 | AW47: 289418 | AX47: 167182.3077 | AY47: 456600 | BA47: 0 | BB47: 0 | BC47: 0 | BD47: 0 | BF47: 456600 | BG47: 456600 | BH47: 456600 | BI47: 456600 | BJ47: 456600 | BL47: 42 | BM47: 237.3180873 | BN47: 237.3180873 | BO47: 237.3180873 | BP47: 237.3180873 | BQ47: 237.3180873 | BS47: 42 | BT47: 355.977131 | BU47: 355.977131 | BV47: 355.977131 | BW47: 355.977131 | BX47: 355.977131 | BZ47: 42 | CA47: 118.6590437 | CB47: 118.6590437 | CC47: 118.6590437 | CD47: 118.6590437 | CE47: 118.6590437
A48: 43 | B48: 38895.66667 | C48: 38895.66667 | D48: 38895.66667 | E48: 38895.66667 | F48: 38895.66667 | H48: 38895.66667 | I48: 38895.66667 | J48: 38895.66667 | L48: 43 | M48: 38895.66667 | N48: 38895.66667 | O48: 38895.66667 | P48: 38895.66667 | Q48: 38895.66667 | S48: 38895.66667 | T48: 38895.66667 | U48: 38895.66667 | V48: 38895.66667 | X48: 43 | Y48: 295850 | Z48: 170898 | AA48: 466748 | AB48: 0 | AC48: 0 | AD48: 0 | AE48: 0 | AL48: 0 | AM48: 0 | AN48: 0 | AO48: 0 | AQ48: 466748 | AR48: 466748 | AS48: 466748 | AT48: 466748 | AU48: 466748 | AW48: 295850 | AX48: 170897.7525 | AY48: 466748 | BA48: 0 | BB48: 0 | BC48: 0 | BD48: 0 | BF48: 466748 | BG48: 466748 | BH48: 466748 | BI48: 466748 | BJ48: 466748 | BL48: 43 | BM48: 242.5925156 | BN48: 242.5925156 | BO48: 242.5925156 | BP48: 242.5925156 | BQ48: 242.5925156 | BS48: 43 | BT48: 363.8887734 | BU48: 363.8887734 | BV48: 363.8887734 | BW48: 363.8887734 | BX48: 363.8887734 | BZ48: 43 | CA48: 121.2962578 | CB48: 121.2962578 | CC48: 121.2962578 | CD48: 121.2962578 | CE48: 121.2962578
A49: 44 | B49: 39764.66667 | C49: 39764.66667 | D49: 39764.66667 | E49: 39764.66667 | F49: 39764.66667 | H49: 39764.66667 | I49: 39764.66667 | J49: 39764.66667 | L49: 44 | M49: 39764.66667 | N49: 39764.66667 | O49: 39764.66667 | P49: 39764.66667 | Q49: 39764.66667 | S49: 39764.66667 | T49: 39764.66667 | U49: 39764.66667 | V49: 39764.66667 | X49: 44 | Y49: 302460 | Z49: 174716 | AA49: 477176 | AB49: 0 | AC49: 0 | AD49: 0 | AE49: 0 | AL49: 0 | AM49: 0 | AN49: 0 | AO49: 0 | AQ49: 477176 | AR49: 477176 | AS49: 477176 | AT49: 477176 | AU49: 477176 | AW49: 302460 | AX49: 174716.019 | AY49: 477176 | BA49: 0 | BB49: 0 | BC49: 0 | BD49: 0 | BF49: 477176 | BG49: 477176 | BH49: 477176 | BI49: 477176 | BJ49: 477176 | BL49: 44 | BM49: 248.012474 | BN49: 248.012474 | BO49: 248.012474 | BP49: 248.012474 | BQ49: 248.012474 | BS49: 44 | BT49: 372.018711 | BU49: 372.018711 | BV49: 372.018711 | BW49: 372.018711 | BX49: 372.018711 | BZ49: 44 | CA49: 124.006237 | CB49: 124.006237 | CC49: 124.006237 | CD49: 124.006237 | CE49: 124.006237
A50: 45 | B50: 40657.5 | C50: 40657.5 | D50: 40657.5 | E50: 40657.5 | F50: 40657.5 | H50: 40657.5 | I50: 40657.5 | J50: 40657.5 | L50: 45 | M50: 40657.5 | N50: 40657.5 | O50: 40657.5 | P50: 40657.5 | Q50: 40657.5 | S50: 40657.5 | T50: 40657.5 | U50: 40657.5 | V50: 40657.5 | X50: 45 | Y50: 309251 | Z50: 178639 | AA50: 487890 | AB50: 0 | AC50: 0 | AD50: 0 | AE50: 0 | AL50: 0 | AM50: 0 | AN50: 0 | AO50: 0 | AQ50: 487890 | AR50: 487890 | AS50: 487890 | AT50: 487890 | AU50: 487890 | AW50: 309251 | AX50: 178638.8402 | AY50: 487890 | BA50: 0 | BB50: 0 | BC50: 0 | BD50: 0 | BF50: 487890 | BG50: 487890 | BH50: 487890 | BI50: 487890 | BJ50: 487890 | BL50: 45 | BM50: 253.5810811 | BN50: 253.5810811 | BO50: 253.5810811 | BP50: 253.5810811 | BQ50: 253.5810811 | BS50: 45 | BT50: 380.3716216 | BU50: 380.3716216 | BV50: 380.3716216 | BW50: 380.3716216 | BX50: 380.3716216 | BZ50: 45 | CA50: 126.7905405 | CB50: 126.7905405 | CC50: 126.7905405 | CD50: 126.7905405 | CE50: 126.7905405
A51: 46 | B51: 41574.91667 | C51: 41574.91667 | D51: 41574.91667 | E51: 41574.91667 | F51: 41574.91667 | H51: 41574.91667 | I51: 41574.91667 | J51: 41574.91667 | L51: 46 | M51: 41574.91667 | N51: 41574.91667 | O51: 41574.91667 | P51: 41574.91667 | Q51: 41574.91667 | S51: 41574.91667 | T51: 41574.91667 | U51: 41574.91667 | V51: 41574.91667 | X51: 46 | Y51: 316229 | Z51: 182670 | AA51: 498899 | AB51: 0 | AC51: 0 | AD51: 0 | AE51: 0 | AL51: 0 | AM51: 0 | AN51: 0 | AO51: 0 | AQ51: 498899 | AR51: 498899 | AS51: 498899 | AT51: 498899 | AU51: 498899 | AW51: 316229 | AX51: 182669.6818 | AY51: 498899 | BA51: 0 | BB51: 0 | BC51: 0 | BD51: 0 | BF51: 498899 | BG51: 498899 | BH51: 498899 | BI51: 498899 | BJ51: 498899 | BL51: 46 | BM51: 259.3030146 | BN51: 259.3030146 | BO51: 259.3030146 | BP51: 259.3030146 | BQ51: 259.3030146 | BS51: 46 | BT51: 388.9545218 | BU51: 388.9545218 | BV51: 388.9545218 | BW51: 388.9545218 | BX51: 388.9545218 | BZ51: 46 | CA51: 129.6515073 | CB51: 129.6515073 | CC51: 129.6515073 | CD51: 129.6515073 | CE51: 129.6515073
A52: 47 | B52: 42314.91667 | C52: 42314.91667 | D52: 42314.91667 | E52: 42314.91667 | F52: 42314.91667 | H52: 42314.91667 | I52: 42314.91667 | J52: 42314.91667 | L52: 47 | M52: 42314.91667 | N52: 42314.91667 | O52: 42314.91667 | P52: 42314.91667 | Q52: 42314.91667 | S52: 42314.91667 | T52: 42314.91667 | U52: 42314.91667 | V52: 42314.91667 | X52: 47 | Y52: 321858 | Z52: 185921 | AA52: 507779 | AB52: 0 | AC52: 0 | AD52: 0 | AE52: 0 | AL52: 0 | AM52: 0 | AN52: 0 | AO52: 0 | AQ52: 507779 | AR52: 507779 | AS52: 507779 | AT52: 507779 | AU52: 507779 | AW52: 321858 | AX52: 185921.2737 | AY52: 507779 | BA52: 0 | BB52: 0 | BC52: 0 | BD52: 0 | BF52: 507779 | BG52: 507779 | BH52: 507779 | BI52: 507779 | BJ52: 507779 | BL52: 47 | BM52: 263.9183992 | BN52: 263.9183992 | BO52: 263.9183992 | BP52: 263.9183992 | BQ52: 263.9183992 | BS52: 47 | BT52: 395.8775988 | BU52: 395.8775988 | BV52: 395.8775988 | BW52: 395.8775988 | BX52: 395.8775988 | BZ52: 47 | CA52: 131.9591996 | CB52: 131.9591996 | CC52: 131.9591996 | CD52: 131.9591996 | CE52: 131.9591996
A53: 48 | B53: 44260.08333 | C53: 44260.08333 | D53: 44260.08333 | E53: 44260.08333 | F53: 44260.08333 | H53: 44260.08333 | I53: 44260.08333 | J53: 44260.08333 | L53: 48 | M53: 44260.08333 | N53: 44260.08333 | O53: 44260.08333 | P53: 44260.08333 | Q53: 44260.08333 | S53: 44260.08333 | T53: 44260.08333 | U53: 44260.08333 | V53: 44260.08333 | X53: 48 | Y53: 336653 | Z53: 194468 | AA53: 531121 | AB53: 0 | AC53: 0 | AD53: 0 | AE53: 0 | AL53: 0 | AM53: 0 | AN53: 0 | AO53: 0 | AQ53: 531121 | AR53: 531121 | AS53: 531121 | AT53: 531121 | AU53: 531121 | AW53: 336653 | AX53: 194467.6055 | AY53: 531121 | BA53: 0 | BB53: 0 | BC53: 0 | BD53: 0 | BF53: 531121 | BG53: 531121 | BH53: 531121 | BI53: 531121 | BJ53: 531121 | BL53: 48 | BM53: 276.0504158 | BN53: 276.0504158 | BO53: 276.0504158 | BP53: 276.0504158 | BQ53: 276.0504158 | BS53: 48 | BT53: 414.0756237 | BU53: 414.0756237 | BV53: 414.0756237 | BW53: 414.0756237 | BX53: 414.0756237 | BZ53: 48 | CA53: 138.0252079 | CB53: 138.0252079 | CC53: 138.0252079 | CD53: 138.0252079 | CE53: 138.0252079
A54: 49 | B54: 47230.33333 | C54: 47230.33333 | D54: 47230.33333 | E54: 47230.33333 | F54: 47230.33333 | H54: 47230.33333 | I54: 47230.33333 | J54: 47230.33333 | L54: 49 | M54: =BF54/12 -> 47230.33333 | N54: 47230.33333 | O54: 47230.33333 | P54: 47230.33333 | Q54: 47230.33333 | S54: 47230.33333 | T54: 47230.33333 | U54: 47230.33333 | V54: 47230.33333 | X54: 49 | Y54: 359246 | Z54: 207518 | AA54: 566764 | AB54: 0 | AC54: 0 | AD54: 0 | AE54: 0 | AL54: 0 | AM54: 0 | AN54: 0 | AO54: 0 | AQ54: 566764 | AR54: 566764 | AS54: 566764 | AT54: 566764 | AU54: 566764 | AW54: 359246 | AX54: 207518.4519 | AY54: 566764 | BA54: 0 | BB54: 0 | BC54: 0 | BD54: 0 | BF54: 566764 | BG54: 566764 | BH54: 566764 | BI54: 566764 | BJ54: 566764 | BL54: 49 | BM54: 294.5758836 | BN54: 294.5758836 | BO54: 294.5758836 | BP54: 294.5758836 | BQ54: 294.5758836 | BS54: 49 | BT54: 441.8638254 | BU54: 441.8638254 | BV54: 441.8638254 | BW54: 441.8638254 | BX54: 441.8638254 | BZ54: 49 | CA54: 147.2879418 | CB54: 147.2879418 | CC54: 147.2879418 | CD54: 147.2879418 | CE54: 147.2879418
A55: 50 | B55: 50527.41667 | C55: 50527.41667 | D55: 50527.41667 | E55: 50527.41667 | F55: 50527.41667 | H55: 50527.41667 | I55: 50527.41667 | J55: 50527.41667 | L55: 50 | M55: =BF55/12 -> 51719.16667 | N55: 51719.16667 | O55: 51719.16667 | P55: 51719.16667 | Q55: 51719.16667 | S55: 51719.16667 | T55: 51719.16667 | U55: 51719.16667 | V55: 51719.16667 | X55: 50 | Y55: 384324 | Z55: 222005 | AA55: 606329 | AB55: 0 | AC55: 0 | AD55: 0 | AE55: 0 | AL55: 0 | AM55: 0 | AN55: 0 | AO55: 0 | AQ55: 606329 | AR55: 606329 | AS55: 606329 | AT55: 606329 | AU55: 606329 | AW55: 393389 | AX55: 227241.1559 | AY55: 620630 | BA55: 0 | BB55: 0 | BC55: 0 | BD55: 0 | BF55: 620630 | BG55: 620630 | BH55: 620630 | BI55: 620630 | BJ55: 620630 | BL55: 50 | BM55: 315.1398129 | BN55: 315.1398129 | BO55: 315.1398129 | BP55: 315.1398129 | BQ55: 315.1398129 | BS55: 50 | BT55: 472.7097193 | BU55: 472.7097193 | BV55: 472.7097193 | BW55: 472.7097193 | BX55: 472.7097193 | BZ55: 50 | CA55: 157.5699064 | CB55: 157.5699064 | CC55: 157.5699064 | CD55: 157.5699064 | CE55: 157.5699064
A56: 51 | B56: 55811.25 | C56: 55811.25 | D56: 55811.25 | E56: 55811.25 | F56: 55811.25 | H56: 55811.25 | I56: 55811.25 | J56: 55811.25 | L56: 51 | M56: 57313.5 | N56: 57313.5 | O56: 57313.5 | P56: 57313.5 | Q56: 57313.5 | S56: 57313.5 | T56: 57313.5 | U56: 57313.5 | V56: 57313.5 | X56: 51 | Y56: 424514 | Z56: 245221 | AA56: 669735 | AL56: 0 | AM56: 0 | AN56: 0 | AO56: 0 | AQ56: 669735 | AR56: 669735 | AS56: 669735 | AT56: 669735 | AU56: 669735 | AW56: 435941 | AX56: 251821.3187 | AY56: 687762 | BA56: 0 | BB56: 0 | BC56: 0 | BD56: 0 | BF56: 687762 | BG56: 687762 | BH56: 687762 | BI56: 687762 | BJ56: 687762 | BL56: 51 | BM56: 348.0951143 | BN56: 348.0951143 | BO56: 348.0951143 | BP56: 348.0951143 | BQ56: 348.0951143 | BS56: 51 | BT56: 522.1426715 | BU56: 522.1426715 | BV56: 522.1426715 | BW56: 522.1426715 | BX56: 522.1426715 | BZ56: 51 | CA56: 174.0475572 | CB56: 174.0475572 | CC56: 174.0475572 | CD56: 174.0475572 | CE56: 174.0475572
A57: 52 | B57: 63506.16667 | C57: 63506.16667 | D57: 63506.16667 | E57: 63506.16667 | F57: 63506.16667 | H57: 63506.16667 | I57: 63506.16667 | J57: 63506.16667 | L57: 52 | M57: 65274.08333 | N57: 65274.08333 | O57: 65274.08333 | P57: 65274.08333 | Q57: 65274.08333 | S57: 65274.08333 | T57: 65274.08333 | U57: 65274.08333 | V57: 65274.08333 | X57: 52 | Y57: 483044 | Z57: 279030 | AA57: 762074 | AL57: 0 | AM57: 0 | AN57: 0 | AO57: 0 | AQ57: 762074 | AR57: 762074 | AS57: 762074 | AT57: 762074 | AU57: 762074 | AW57: 496491 | AX57: 286798.0261 | AY57: 783289 | BA57: 0 | BB57: 0 | BC57: 0 | BD57: 0 | BF57: 783289 | BG57: 783289 | BH57: 783289 | BI57: 783289 | BJ57: 783289 | BL57: 52 | BM57: 396.0883576 | BN57: 396.0883576 | BO57: 396.0883576 | BP57: 396.0883576 | BQ57: 396.0883576 | BS57: 52 | BT57: 594.1325364 | BU57: 594.1325364 | BV57: 594.1325364 | BW57: 594.1325364 | BX57: 594.1325364 | BZ57: 52 | CA57: 198.0441788 | CB57: 198.0441788 | CC57: 198.0441788 | CD57: 198.0441788 | CE57: 198.0441788
A58: 53 | B58: 69727.41667 | C58: 69727.41667 | D58: 69727.41667 | E58: 69727.41667 | F58: 69727.41667 | H58: 69727.41667 | I58: 69727.41667 | J58: 69727.41667 | L58: 53 | M58: 72660.91667 | N58: 72660.91667 | O58: 72660.91667 | P58: 72660.91667 | Q58: 72660.91667 | S58: 72660.91667 | T58: 72660.91667 | U58: 72660.91667 | V58: 72660.91667 | X58: 53 | Y58: 530364 | Z58: 306365 | AA58: 836729 | AL58: 0 | AM58: 0 | AN58: 0 | AO58: 0 | AQ58: 836729 | AR58: 836729 | AS58: 836729 | AT58: 836729 | AU58: 836729 | AW58: 552677 | AX58: 319253.869 | AY58: 871931 | BA58: 0 | BB58: 0 | BC58: 0 | BD58: 0 | BF58: 871931 | BG58: 871931 | BH58: 871931 | BI58: 871931 | BJ58: 871931 | BL58: 53 | BM58: 434.8903326 | BN58: 434.8903326 | BO58: 434.8903326 | BP58: 434.8903326 | BQ58: 434.8903326 | BS58: 53 | BT58: 652.335499 | BU58: 652.335499 | BV58: 652.335499 | BW58: 652.335499 | BX58: 652.335499 | BZ58: 53 | CA58: 217.4451663 | CB58: 217.4451663 | CC58: 217.4451663 | CD58: 217.4451663 | CE58: 217.4451663
A59: 54 | B59: 78021.25 | C59: 78021.25 | D59: 78021.25 | E59: 78021.25 | F59: 78021.25 | H59: 78021.25 | I59: 78021.25 | J59: 78021.25 | L59: 54 | M59: 81867.41667 | N59: 81867.41667 | O59: 81867.41667 | P59: 81867.41667 | Q59: 81867.41667 | S59: 81867.41667 | T59: 81867.41667 | U59: 81867.41667 | V59: 81867.41667 | X59: 54 | Y59: 593449 | Z59: 342806 | AA59: 936255 | AL59: 0 | AM59: 0 | AN59: 0 | AO59: 0 | AQ59: 936255 | AR59: 936255 | AS59: 936255 | AT59: 936255 | AU59: 936255 | AW59: 622704 | AX59: 359704.9656 | AY59: 982409 | BA59: 0 | BB59: 0 | BC59: 0 | BD59: 0 | BF59: 982409 | BG59: 982409 | BH59: 982409 | BI59: 982409 | BJ59: 982409 | BL59: 54 | BM59: 486.6190229 | BN59: 486.6190229 | BO59: 486.6190229 | BP59: 486.6190229 | BQ59: 486.6190229 | BS59: 54 | BT59: 729.9285343 | BU59: 729.9285343 | BV59: 729.9285343 | BW59: 729.9285343 | BX59: 729.9285343 | BZ59: 54 | CA59: 243.3095114 | CB59: 243.3095114 | CC59: 243.3095114 | CD59: 243.3095114 | CE59: 243.3095114
A60: 55 | B60: 87990.5 | C60: 87990.5 | D60: 87990.5 | E60: 87990.5 | F60: 87990.5 | H60: 87990.5 | I60: 87990.5 | J60: 87990.5 | L60: 55 | M60: 91836.75 | N60: 91836.75 | O60: 91836.75 | P60: 91836.75 | Q60: 91836.75 | S60: 91836.75 | T60: 91836.75 | U60: 91836.75 | V60: 91836.75 | X60: 55 | Y60: 669278 | Z60: 386608 | AA60: 1055886 | AL60: 0 | AM60: 0 | AN60: 0 | AO60: 0 | AQ60: 1055886 | AR60: 1055886 | AS60: 1055886 | AT60: 1055886 | AU60: 1055886 | AW60: 698533 | AX60: 403507.5874 | AY60: 1102041 | BA60: 0 | BB60: 0 | BC60: 0 | BD60: 0 | BF60: 1102041 | BG60: 1102041 | BH60: 1102041 | BI60: 1102041 | BJ60: 1102041 | BL60: 55 | BM60: 548.7972973 | BN60: 548.7972973 | BO60: 548.7972973 | BP60: 548.7972973 | BQ60: 548.7972973 | BS60: 55 | BT60: 823.1959459 | BU60: 823.1959459 | BV60: 823.1959459 | BW60: 823.1959459 | BX60: 823.1959459 | BZ60: 55 | CA60: 274.3986486 | CB60: 274.3986486 | CC60: 274.3986486 | CD60: 274.3986486 | CE60: 274.3986486
A61: 56 | B61: 99169.66667 | C61: 99169.66667 | D61: 99169.66667 | E61: 99169.66667 | F61: 99169.66667 | H61: 99169.66667 | I61: 99169.66667 | J61: 99169.66667 | L61: 56 | M61: 103016.0833 | N61: 103016.0833 | O61: 103016.0833 | P61: 103016.0833 | Q61: 103016.0833 | S61: 103016.0833 | T61: 103016.0833 | U61: 103016.0833 | V61: 103016.0833 | X61: 56 | Y61: 754309 | Z61: 435727 | AA61: 1190036 | AL61: 0 | AM61: 0 | AN61: 0 | AO61: 0 | AQ61: 1190036 | AR61: 1190036 | AS61: 1190036 | AT61: 1190036 | AU61: 1190036 | AW61: 783566 | AX61: 452626.8999 | AY61: 1236193 | BA61: 0 | BB61: 0 | BC61: 0 | BD61: 0 | BF61: 1236193 | BG61: 1236193 | BH61: 1236193 | BI61: 1236193 | BJ61: 1236193 | BL61: 56 | BM61: 618.5218295 | BN61: 618.5218295 | BO61: 618.5218295 | BP61: 618.5218295 | BQ61: 618.5218295 | BS61: 56 | BT61: 927.7827443 | BU61: 927.7827443 | BV61: 927.7827443 | BW61: 927.7827443 | BX61: 927.7827443 | BZ61: 56 | CA61: 309.2609148 | CB61: 309.2609148 | CC61: 309.2609148 | CD61: 309.2609148 | CE61: 309.2609148
Z62: =ROUND(Y62*valgt_regulering,0) -> 0
Z63: 0
Z64: 0
Z65: 0
Z66: 0
Z67: 0
Z68: 0
Z69: 0
A70: 2006-10-01 | B70: 4131.67 | C70: 4204.98 | D70: 4265.26 | E70: 4358.11 | F70: 4420 | Z70: 0
A71: 2007-04-01 | B71: 4229.54 | C71: 4303.89 | D71: 4365.01 | E71: 4459.17 | F71: 4521.93 | Z71: 0

Sheet Forside
J11: Lønniveau: | K11: 2024-04-01
D15: Hvad betyder det for lønnen, hvis man ændrer på lønsammensætning eller timetal ?

Sheet Omregner
D11: Valgt lønniveau: | F11: =Forside!K11 -> 2024-04-01 | H11: Timetal: | I11: 37
B13: 1) Grundbeløb pr. 31-3-2000 omregnet til nutidskr.
C14: Årligt grundbeløb: | E14: 11300
E16: år | F16: måned
C17: Aktuelt beløb | E17: =ROUND(((kr_omregnes*valgt_regulering)/37*I11),0) -> 17827 | F17: =E17/12 -> 1485.583333
B20: 2) Beløb der skal omregnes til '31-3-2000-niveau'
C21: Månedligt beløb | E21: 1485.6
E23: år | F23: måned
C24: Grundbeløb pr. 31-3-2000 | E24: =ROUND(E21*12/valgt_regulering,0)/I11*37 -> 11300 | F24: =E24/12 -> 941.6666667

Sheet Omregningstabel (hidden)
D1: 1.362716 | E1: 1.382496 | F1: 1.398079 | G1: 1.018559 | H1: 1.040662 | I1: 1.051157 | J1: 1.061566 | K1: 1.083422 | L1: 1.08868 | M1: 1.092675 | N1: 1.109523 | O1: 1.120038 | P1: 1.124454
B7: Indtast beløb: | C7: 1000
C10: 1/10 '84
C11: =Beløb -> 1000 | D11: 1/4 '98
B12: 1/4-98 | C12: =Beløb*_1_4_1998 -> 1362.716 | D12: =Beløb -> 1000 | E12: 1/10 '98
B13: 1/10-98 | C13: =Beløb*_1_10_1998 -> 1382.496 | D13: =Beløb/_1_4_1998*_1_10_1998 -> 1014.51513 | E13: =Beløb -> 1000 | F13: 1/4 '99
B14: 1/4-99 | C14: =Beløb*_1_4_1999 -> 1398.079 | D14: =Beløb/_1_4_1998*_1_4_1999 -> 1025.950381 | E14: =Beløb/_1_10_1998*_1_4_1999 -> 1011.271642 | F14: =Beløb -> 1000
B15: Grundbeløb pr. 31/3-00 | C15: =ROUND(C14,-2) -> 1400 | D15: =ROUND(D14,-2) -> 1000 | E15: =ROUND(E14,-2) -> 1000 | F15: =ROUND(F14,-2) -> 1000 | G15: 1/4 '00
B16: 1/4-00 | C16: =Nyt_beløb_1*_1_4_2000 -> 1425.9826 | D16: =Nyt_beløb_2*_1_4_2000 -> 1018.559 | E16: =Nyt_beløb_3*_1_4_2000 -> 1018.559 | F16: =Nyt_beløb_4*_1_4_2000 -> 1018.559 | G16: =Beløb -> 1000 | H16: 1/4 '01
B17: 1/4-01 | C17: =Nyt_beløb_1*_1_4_2001 -> 1456.9268 | D17: =Nyt_beløb_2*_1_4_2001 -> 1040.662 | E17: =Nyt_beløb_3*_1_4_2001 -> 1040.662 | F17: =Nyt_beløb_4*_1_4_2001 -> 1040.662 | G17: =beløb_4_00/_1_4_2000*_1_4_2001 -> 1021.700265 | H17: =Beløb -> 1000 | I17: 1/10 '01
B18: 1/10-01 | C18: =Nyt_beløb_1*_1_10_2001 -> 1471.6198 | D18: =Nyt_beløb_2*_1_10_2001 -> 1051.157 | E18: =Nyt_beløb_3*_1_10_2001 -> 1051.157 | F18: =Nyt_beløb_4*_1_10_2001 -> 1051.157 | G18: =beløb_4_00/_1_4_2000*_1_10_2001 -> 1032.004037 | H18: =beløb_4_01/_1_4_2001*_1_10_2001 -> 1010.084927 | I18: =Beløb -> 1000 | J18: 1/4 '02
B19: 1/4-02 | C19: =Nyt_beløb_1*_1_4_2002 -> 1486.1924 | D19: =Nyt_beløb_2*_1_4_2002 -> 1061.566 | E19: =Nyt_beløb_3*_1_4_2002 -> 1061.566 | F19: =Nyt_beløb_4*_1_4_2002 -> 1061.566 | G19: =beløb_4_00/_1_4_2000*_1_4_2002 -> 1042.223376 | H19: =beløb_4_01/_1_4_2001*_1_4_2002 -> 1020.087214 | I19: =beløb_10_01/_1_10_2001*_1_4_2002 -> 1009.902422 | J19: =Beløb -> 1000 | K19: 1/4 '03
B20: 1/4-03 | C20: =Nyt_beløb_1*_1_4_2003 -> 1516.7908 | D20: =Nyt_beløb_2*_1_4_2003 -> 1083.422 | E20: =Nyt_beløb_3*_1_4_2003 -> 1083.422 | F20: =Nyt_beløb_4*_1_4_2003 -> 1083.422 | G20: =beløb_4_00/_1_4_2000*_1_4_2003 -> 1063.681142 | H20: =beløb_4_01/_1_4_2001*_1_4_2003 -> 1041.08923 | I20: =beløb_10_01/_1_10_2001*_1_4_2003 -> 1030.694749 | J20: =beløb_4_02/_1_4_2002*_1_4_2003 -> 1020.588451 | K20: =Beløb -> 1000 | L20: 1/8 '03
B21: 1/8-03 | C21: =Nyt_beløb_1*_1_8_2003 -> 1524.152 | D21: =Nyt_beløb_2*_1_8_2003 -> 1088.68 | E21: =Nyt_beløb_3*_1_8_2003 -> 1088.68 | F21: =Nyt_beløb_4*_1_8_2003 -> 1088.68 | G21: =beløb_4_00/_1_4_2000*_1_8_2003 -> 1068.843337 | H21: =beløb_4_01/_1_4_2001*_1_8_2003 -> 1046.141783 | I21: =beløb_10_01/_1_10_2001*_1_8_2003 -> 1035.696856 | J21: =beløb_4_02/_1_4_2002*_1_8_2003 -> 1025.541511 | K21: =beløb_4_03/_1_4_2003*_1_8_2003 -> 1004.853141 | L21: =Beløb -> 1000 | M21: 1/10 '03
B22: 1/10-03 | C22: =Nyt_beløb_1*_1_10_2003 -> 1529.745 | D22: =Nyt_beløb_2*_1_10_2003 -> 1092.675 | E22: =Nyt_beløb_3*_1_10_2003 -> 1092.675 | F22: =Nyt_beløb_4*_1_10_2003 -> 1092.675 | G22: =beløb_4_00/_1_4_2000*_1_10_2003 -> 1072.765544 | H22: =beløb_4_01/_1_4_2001*_1_10_2003 -> 1049.980685 | I22: =beløb_4_01/_1_4_2001*_1_10_2003 -> 1049.980685 | J22: =beløb_4_02/_1_4_2002*_1_10_2003 -> 1029.304819 | K22: =beløb_4_03/_1_4_2003*_1_10_2003 -> 1008.540532 | L22: =beløb_8_03/_1_8_2003*_1_10_2003 -> 1003.669582 | M22: =Beløb -> 1000 | N22: 1/4 '04
B23: 1/4 '04 | C23: =Nyt_beløb_1*_1_4_2004 -> 1553.3322 | D23: =Nyt_beløb_2*_1_4_2004 -> 1109.523 | E23: =Nyt_beløb_3*_1_4_2004 -> 1109.523 | F23: =Nyt_beløb_4*_1_4_2004 -> 1109.523 | G23: =beløb_4_00/_1_4_2000*_1_4_2004 -> 1089.30656 | H23: =beløb_4_01/_1_4_2001*_1_4_2004 -> 1066.17038 | I23: =beløb_4_01/_1_4_2001*_1_4_2004 -> 1066.17038 | J23: =beløb_4_02/_1_4_2002*_1_4_2004 -> 1045.175712 | K23: =beløb_4_03/_1_4_2003*_1_4_2004 -> 1024.091259 | L23: =beløb_8_03/_1_8_2003*_1_4_2004 -> 1019.145203 | M23: =beløb_10_03/_1_10_2003*_1_4_2004 -> 1015.41904 | N23: =Beløb -> 1000 | O23: 1/8 '04
B24: 1/8 '04 | C24: =Nyt_beløb_1*_1_8_2004 -> 1568.0532 | D24: =Nyt_beløb_2*_1_8_2004 -> 1120.038 | E24: =Nyt_beløb_3*_1_8_2004 -> 1120.038 | F24: =Nyt_beløb_4*_1_8_2004 -> 1120.038 | G24: =beløb_4_00/_1_4_2000*_1_8_2004 -> 1099.629967 | H24: =beløb_4_01/_1_4_2001*_1_8_2004 -> 1076.274525 | I24: =beløb_4_01/_1_4_2001*_1_8_2004 -> 1076.274525 | J24: =beløb_4_02/_1_4_2002*_1_8_2004 -> 1055.08089 | K24: =beløb_4_03/_1_4_2003*_1_8_2004 -> 1033.796618 | L24: =beløb_8_03/_1_8_2003*_1_8_2004 -> 1028.803689 | M24: =beløb_10_03/_1_10_2003*_1_8_2004 -> 1025.042213 | N24: =beløb_4_04/_1_4_2004*_1_8_2004 -> 1009.477046 | O24: =Beløb -> 1000 | P24: 1/10 '04
B25: 1/10 '04 | C25: =Nyt_beløb_1*_1_10_2004 -> 1574.2356 | D25: =Nyt_beløb_2*_1_10_2004 -> 1124.454 | E25: =Nyt_beløb_3*_1_10_2004 -> 1124.454 | F25: =Nyt_beløb_4*_1_10_2004 -> 1124.454 | G25: =beløb_4_00/_1_4_2000*_1_10_2004 -> 1103.965504 | H25: =beløb_4_01/_1_4_2001*_1_10_2004 -> 1080.517978 | I25: =beløb_4_01/_1_4_2001*_1_10_2004 -> 1080.517978 | J25: =beløb_4_02/_1_4_2002*_1_10_2004 -> 1059.240782 | K25: =beløb_4_03/_1_4_2003*_1_10_2004 -> 1037.872593 | L25: =beløb_8_03/_1_8_2003*_1_10_2004 -> 1032.859977 | M25: =beløb_10_03/_1_10_2003*_1_10_2004 -> 1029.083671 | N25: =beløb_4_04/_1_4_2004*_1_10_2004 -> 1013.457134 | O25: =beløb_8_04/_1_8_2004*_1_10_2004 -> 1003.942723 | P25: =Beløb -> 1000

Sheet Tillæg_trin (hidden)
A1: 3
B3: Valgt lønniveau: | C3: =Forside!K11 -> 2024-04-01
B5: Løngruppe | D5: 3
B6: Timer/uge | D6: 37
B7: Pensions-% inkl. evt. fritvalgs-% | D7: 13.89
B8: Særlig feriegodtgørelse, aktuel pct. | D8: 1.95
B10: Stigning: | C10: Fra | D10: Til
B11: Løntrin | C11: 18 | D11: 19
B13: Løn | C13: =(VLOOKUP(til_trin,Lønark!A5:F61,løngruppe+2,FALSE)-VLOOKUP(fra_trin,Lønark!A5:F61,løngruppe+2,FALSE))/37*timetal*12 -> 4488
B14: Pension inkl. evt. fritvalgstillæg | C14: =(VLOOKUP(til_trin,Lønark!L5:Q61,løngruppe+2,FALSE)-VLOOKUP(fra_trin,Lønark!L5:Q61,løngruppe+2,FALSE))/37*timetal*pensionsstatus%*12 -> 623.3832
B15: Ferietillæg | C15: =ferie_pct%*C13 -> 87.516
B16: Årlig bruttoudgift i alt | C16: =ROUND(SUM(C13:C15),0) -> 5199

Sheet Tillæg_kr (hidden)
A1: 2
C3: Valgt lønniveau: | D3: =Forside!K11 -> 2024-04-01
A5: =VLOOKUP(dummy,reg_procenter,2,FALSE) ->  | C5: Årligt beløb, 31.3.2000 niveau | D5: 12900
C6: Timer/uge | D6: 30
C7: Pension-% inkl. evt. fritvalgs-% | D7: 13.89
C8: Særlig feriegodtg., aktuel pct. | D8: 1.95
C11: bruttoudgift / år | D11: bruttoudgift / md
B12: Løn | C12: =kr*valgt_regulering/37*timetal -> 16501.36622 | D12: =beløb/12 -> 1375.113851
B13: Pension inkl. evt. fritvalgstillæg | C13: =beløb*pensionsstatus% -> 2292.039767 | D13: =C13/12 -> 191.003314
B14: Ferietillæg | C14: =D8%*(C12) -> 321.7766412 | D14: =C14/12 -> 26.8147201
B15: Bruttoudgift i alt | C15: =ROUND(SUM(C12:C14),0) -> 19115 | D15: =ROUND(SUM(D12:D14),0) -> 1593

Sheet Tid op_ned
A1: 2 | B1: Valgt lønniveau: | C1: =Forside!K11 -> 2024-04-01
B3: Grundoplysninger:
B4: Løngruppe | C4: 4
B5: Pensions-% inkl. evt. fritvalgs-% | C5: 14.29
B6: Særlig feriegodtgørelse, aktuel procent | C6: 1.95
B9: Lønsammensætning (trin i alt og grundbeløb i alt) | C9: Før ændring | E9: Efter ændring
B11: Løndele: | C11: I alt
B13: Løntrin - centralt og lokalt aftalte | C13: 19 | E13: 19
B15: Tillæg (grundbeløb 31.3.2000) kr./år centralt og lokalt aftalte
C18: Før ændring | E18: Efter ændring | H18: ="Difference"&IF(C24>E24," (lønnedgang)"," (lønstigning)") -> Difference (lønstigning)
B19: Timer/uge | C19: 30 | E19: 37 | H19: =-(C19-timetal_ny) -> 7
B21: Fast månedsløn | C21: =(VLOOKUP(C13,Lønark!A5:F61,$C$4+2,FALSE)+((C15)*valgt_regulering/12))/37*C19 -> 22312.97297 | E21: =(VLOOKUP(E13,Lønark!A5:F61,$C$4+2,FALSE)+((E15)*valgt_regulering/12))/37*timetal_ny -> 27519.33333 | H21: =E21-C21 -> 5206.36036
B22: Pension inkl. evt. fritvalgstillæg | C22: =(((VLOOKUP(C13,Lønark!L5:Q61,$C$4+2,FALSE)+(C15*valgt_regulering/12))/37*C19)*C5%) -> 3188.523838 | E22: =((VLOOKUP(E13,Lønark!L5:Q61,$C$4+2,FALSE)+(E15*valgt_regulering/12))/37*timetal_ny)*C5% -> 3932.512733 | H22: =E22-C22 -> 743.9888955
B23: Ferietillæg | C23: =$C$6%*C21 -> 435.102973 | E23: =$C$6%*E21 -> 536.627 | H23: =E23-C23 -> 101.524027
B24: Månedsløn, brutto | C24: =SUM(C21:C23) -> 25936.59978 | E24: =SUM(E21:E23) -> 31988.47307 | H24: =E24-C24 -> 6051.873283
B26: Fast løn, år | C26: =C21*12 -> 267755.6757 | D26: 0 | E26: 330232 | H26: =E26-C26 -> 62476.32432
B27: Pension inkl. evt. fritvalgstillæg, år | C27: 38262.28605 | D27: 0 | E27: 47190.1528 | H27: =E27-C27 -> 8927.866746
B28: Ferietillæg, år | C28: =C23*12 -> 5221.235676 | E28: =E23*12 -> 6439.524 | H28: =E28-C28 -> 1218.288324
B29: Årsløn, brutto | C29: =SUM(C26:C28) -> 311239.1974 | E29: =SUM(E26:E28) -> 383861.6768 | H29: =E29-C29 -> 72622.47939
B31: Timeløn | C31: =ROUND(VLOOKUP(C13,Lønark!A5:AU61,C4+43,FALSE)/1924,2)+ROUND(C15*valgt_regulering/1924,2) -> 171.64 | D31: =D26/timetal_ny*37/1924 -> 0 | E31: =ROUND(VLOOKUP(E13,Lønark!A5:AU61,C4+43,FALSE)/1924,2)+ROUND(E15*valgt_regulering/1924,2) -> 171.64 | H31: =E31-C31 -> 0

Sheet Samlet_omk
A1: 2 | B1: Valgt lønniveau: | C1: =Forside!K11 -> 2024-04-01
B3: Løngruppe | C3: 0
B4: Timer/uge | C4: 37
B5: Pensions-% inkl. evt. fritvalgs-% | C5: 14.29
B6: Særlig feriegodtgørelse, aktuel pct. | C6: 1.95
B8: Løntrin | C8: 21
B10: Reguleret tillæg (31.3.2000) kr./år | C10: 20800
B13: Løn/time | C13: =IFERROR(ROUND(VLOOKUP(fra_trin,Lønark!A5:AU61,løngruppe+43,FALSE)/1924,2)+ROUND(C10*valgt_regulering/1924,2),ROUND(C10*valgt_regulering/1924,2)) -> 184.29
B14: Pension inkl. evt. fritvalgstillæg | C14: =C13*pensionsstatus% -> 26.335041
B15: Ferietillæg | C15: =C6%*C13 -> 3.593655
B16: Time bruttoudgift i alt | C16: =SUM(C13:C15) -> 214.218696
B18: Løn/måned | C18: =IFERROR((VLOOKUP(fra_trin,Lønark!A5:F61,løngruppe+2,FALSE)+(C10*valgt_regulering/12))/37*timetal,C10*valgt_regulering/12/37*timetal) -> 29546.59333
B19: Pension inkl. evt. fritvalgstillæg | C19: =IFERROR(((VLOOKUP(fra_trin,Lønark!L5:Q61,løngruppe+2,FALSE)+C10/12*valgt_regulering)/37*timetal)*pensionsstatus%,C10/12*valgt_regulering/37*timetal*pensionsstatus%) -> 4222.208187
B20: Ferietillæg | C20: =C6%*C18 -> 576.15857
B21: Månedlig bruttoudgift i alt | C21: =SUM(C18:C20) -> 34344.96009
B23: Løn/år | C23: =C18*12 -> 354559.12
B24: Pension inkl. evt. fritvalgstillæg | C24: =C19*12 -> 50666.49825
B25: Ferietillæg | C25: =C20*12 -> 6913.90284
B26: Årlig bruttoudgift i alt | C26: =SUM(C23:C25) -> 412139.5211
